{"text_format":"1","workbook":"xlsx","n_sheets":17,"sheets":["Feuil1","ACCUEIL","مسك 1","مسك 2","مسك 3","مسك 4","غلاف","التمدرس","مدرسون حجرات","فضاءات الاستقبال","Q 03 IMP","الداخليات","الدعم","الأجانب","الموضفون","بطاقة المؤسسة","بطاقة إجمالية"],"not_rendered":{"charts":0,"images":1,"macros":0,"external_links":6,"defined_names":1045,"comments":0,"pivot_tables":0},"unopened":[],"bounds":{"document_bytes":16777216,"sheet_cells":100000,"rows_first":2000,"rows_last":500,"rows_between":2000,"halvings":0,"cell_chars":16384,"cell_head_chars":4096},"cells_cut":0,"cells_raw":0,"read":"whole","date_system":"1900"}

{"sheet":"Feuil1","index":0,"n_rows":79,"n_cols":105,"rows_kept":79,"cut":false,"hidden":true,"merged":[]}
[1,2,3,4,5,6,7,8,9,10,11,12,13,14,15,16,17,18]
["Expr1000","CD_ETAB","NOM_ETABL","NOM_ETABA","CD_ORGTUT","CD_REG","CD_PROV","CD_COM","Expr1008","CD_MIL","AdresseL","Expr1011","CP","VilleL","AdresseA","TEL_ETAB","FAX_ETAB","e-mail","CD_NETAB","CD_ETABR","INDHcom","INDHquart","Nbre_Satellites","Directeur","Directeur Adjoint","Secrétaire Général","Censeur","Directeur d'études","Chef de Travaux","Econome/Intendant","SurveillantGénInt","Nombre de SurvGenExt","CIN_Dir","PPR_Dir","NOM_PrenDirL","NOM_PrenDirA","Préscolaire Moderne","Primaire Général","Primaire Originel","Collégial Général","Collégial Originel","Qualifiant Général","Qualifiant Originel","Qualifiant Technique","CPGE","BTS","CFCCE","CPCA","CFCAFCA","FormInspecteurs","FormCOPE","FormBS","FP","ConsGestEtab","ConsPédag","ConsEnseig","ConsClas","AssParents","AssSportive","CoopScolaire","Partenariat","ClubSanté","CentreAppui","AssEcolReussite","ProgrammeTissir","ClubEnv","CD_Financ","DC_ETAB","DO_ETAB","DF_ETAB","CD_causesFerm","DistSatEcoM","DistUnitéCol","DistColLyc","Const_Dur","Const_Prefab","Const_Pise","Const_Autre","Eau_Source","Elec_Source","Ass_Source","Clo_Dur","Clo_partie","Clo_grillage","Clo_bois","Clo_autre","Clo_sans","Superf_etab","Superf_Cour","Superf_EspVert","Superf_Exten","Cantine","Cantine_Capacité","Cantine_DO","Cantine_DF","Restauration","Couvert_place","Internat","Internat_Capacité","Internat_DO","Internat_DF","Exist_Internet","upsize_ts","nomL","FP_Bac"]
["50740B","50740B","Groupe Scolaire Victor Hugo","مجموعة مدارس فيكتور هيجو","01","06","142","1420181","1","1","N° 9, Rue Al Baria Eddabas - Méchouar de Casablanca","رقم 9، زنقة البارع الدباس - مشوار الدار البيضاء",20500,"Casablanca","رقم 9، زنقة البارع الدباس - مشوار الدار البيضاء","022-30-58-08","022-30-60-62","","200","",false,false,0,true,false,false,false,false,false,false,false,0,"b792181",391702," FAJR HAMID"," الفجر حميد",true,true,false,false,false,false,false,false,false,false,false,false,false,false,false,false,false,true,true,true,true,true,true,true,true,false,false,true,false,true,"01","1970-10-01","1972-10-01",null,"",0,900,0,true,false,false,false,1,1,1,true,false,false,false,false,false,3759,2086,850,0,true,0,"1972-10-01","1992-07-01",false,0,false,0,null,null,false,null,"",false]
["50741C","50741C","INSTITUTION LE CHEMIN VERT ","مؤسسة الطريق الأخضر ","01","06","142","1420181","1","1","N° 29, bd Omar El Idrissi - Méchouar de Casablanca","رقم 29، زنقة شارع عمر الإدريسي - مشوار الدار البيضاء",20500,"Casablanca","رقم 29، زنقة شارع عمر الإدريسي - مشوار الدار البيضاء","0522303372","0522444121","alaoui.fatima@menara.ma","200","",true,false,0,true,false,false,false,false,false,false,false,0,"x55618",316062," HAJJI ABDELOUAHED"," حاجي عبد الواحد",false,true,false,false,false,false,false,false,false,false,false,false,false,false,false,false,false,true,true,true,true,true,true,true,false,false,false,true,false,true,"01","1970-10-01","1990-09-01",null,"",0,1,1,true,false,false,false,1,1,1,true,false,false,false,false,false,4525,2400,950,0,false,0,null,null,false,0,false,0,null,null,false,null,"",false]
["50742D","50742D","ANNEXE Groupe Scolaire La Résidence 4","ملحقة مجموعة مدارس الإقامة 4","01","06","142","1420181","1","1","N° 3, Rue Eddabbas  -  Méchouar de Casablanca","رقم 3، زنقة الدباس - مشوار الدار البيضاء",20500,"Casablanca","رقم 3، زنقة الدباس - مشوار الدار البيضاء","0522451549","0522451549","gsr@gsr.ac.ma","200","",false,false,0,true,false,false,false,false,false,false,false,0,"B94732",646629,"SAID ABDELFETTAH","سعيد عبد الفتاح",false,true,false,false,false,false,false,false,false,false,false,false,false,false,false,false,false,true,true,true,true,true,true,true,false,false,false,true,false,false,"01","1968-10-01","1968-10-01",null,"",0,2,0,true,false,false,false,1,1,1,true,false,false,false,false,false,8400,1733,561,3438,false,0,null,null,false,0,false,0,null,null,false,null,"",false]
["50743E","50743E","Ecole Omar El Idrissi - Annexe","مدرسة عمر الإدريسي - ملحقة","01","06","142","1420181","1","1","N° 4, Rue Plateau Du Kliere - Méchouar De Casablanca","رقم 4، زنقة بلاطو دي كليير - مشوار الدار البيضاء",20500,"Casablanca","رقم 4، زنقة بلاطو دي كليير - مشوار الدار البيضاء","0522302915","___-__-__-__","collegeomarelidrissi@gmail.com","200","",false,false,0,true,false,false,false,false,false,false,false,0," f274550",237851,"mohamed hseini "," محمد حسيني",false,true,false,false,false,false,false,false,false,false,false,false,false,false,false,false,false,true,true,true,true,true,true,true,false,false,false,true,false,false,"01","1960-10-01","1962-10-01",null,"",0,1,0,true,false,false,false,1,1,1,true,false,false,false,false,false,4090,1790,49,3084,true,0,"1962-09-01","1992-07-01",false,0,false,0,null,null,false,null,"",false]
["50744F","50744F","Lycée el Fadel","ثانوية الفاضل","01","06","142","1420181","1","1","N° 62 Bis, Rue Ahmed Figuigui - Méchouar de Casablanca","رقم 62 مكرر، زنقة أحمد الفيكيكي - مشوار الدار البضاء",20500,"Casablanca","رقم 62 مكرر، زنقة أحمد الفيكيكي - مشوار الدار البضاء","022-30-36-40","___-__-__-__","elfadelpriv@hotmail.com","200","",false,false,0,true,false,false,false,false,false,false,false,0,"b541176",355815,"SAMIH MUSTAPHA","ساميح المصطفى",true,true,false,false,false,false,false,false,false,false,false,false,false,false,false,true,false,true,true,true,true,true,true,true,false,false,false,true,false,false,"01","1973-10-01","1975-09-16",null,"",0,1,0,true,false,false,false,1,1,1,true,false,false,false,false,false,2110,1218,135,0,false,0,null,null,false,0,false,0,null,null,false,null,"",false]
["50745G","50745G","LYCEE Racine","مؤسسة راسين","01","06","142","1420181","1","1","Quartier Des Habous, Rue 15, N° 10 - Méchouar de Casablmanca","حي الإحباس، زنقة 15، رقم 10 - مشوار الدار البيضاء",20500,"Casablanca","حي الإحباس، زنقة 15، رقم 10 - مشوار الدار البيضاء","0626957899","___-__-__-__","oussama-riad1@hotmail.fr","200","",true,true,0,true,false,false,false,false,false,false,false,0," i125383",165546," FAROUKI AHMED","أحمد فروقي",false,true,false,false,false,false,false,false,false,false,false,false,false,false,false,false,false,true,true,true,true,true,true,true,false,false,false,true,false,true,"01","1950-10-01","1952-10-01",null,"",0,0,0,true,false,false,false,1,1,2,true,false,false,false,false,false,4406,1620,160,522,true,0,"1952-10-01","1992-07-01",false,0,false,0,null,null,false,null,"",false]
["51200B","51200B","INSTITUTION Al Ibtikar","مؤسسة الإبتكار","01","06","142","1420113","1","1","N° 13, Rue Abou Ali Al Farissi - C. Mers Sultan","رقم 13، زنقة أبو علي الفارسي - ج. مرس السلطان",20500,"Casablanca","رقم 13، زنقة أبو علي الفارسي - ج. مرس السلطان","0522289644","___-__-__-__","alibtikar1@gmail.com","200","",true,true,0,true,false,false,false,false,false,false,false,0,"B 647694",882428,"LAGRAOUI    bahia","بهية لكراوي",true,true,false,false,false,false,false,false,false,false,false,false,false,false,false,false,false,true,true,true,true,true,true,true,false,true,false,true,false,true,"01","1950-10-01","1952-10-01",null,"",0,1,0,true,false,false,false,1,1,1,true,false,false,false,false,false,3824,567,427,863,true,0,"1952-10-01","1992-07-01",false,0,false,0,null,null,true,null,"",false]
["51937C","51937C","INSTITUTION Le Tremplin","مؤسسة القفزة","01","06","142","1420111","1","1","27, RUE 3 , QUARTIER ELOUROUD , BVD NADOR","رقم 27 ، زنقة 3 ، حي الورود ، شارع الناظور",20500,"Casablanca","رقم 27 ، زنقة 3 ، حي الورود ، شارع الناظور","0522827719","0522827782","","200","",false,false,0,false,false,false,false,false,false,false,false,0," ",0," "," ",false,true,false,false,false,false,false,false,false,false,false,false,false,false,false,false,false,true,true,true,true,false,true,true,false,false,false,true,false,false,"01","1976-09-16","1978-09-16","2009-09-01","1",0,2,0,true,false,false,false,1,1,1,true,false,false,false,false,false,4778,1050,286,1799,false,0,null,null,false,0,false,0,null,null,false,null,"",false]
["52556A","52556A","lycée Omar El Idrissi","ثانوية عمر الإدريسي","","06","142","1420113","1","1","25, rue constantinople","25 زنقة القسطنطينية",20006,"casablanca","25 زنقة القسطنطينية","0522448188","0522448188","M.ELMANSOURI.MED@gmail.com","200","",false,false,0,true,false,false,false,false,false,false,false,0,"b 258900",175037,"RAFIK AHMED","رفيق أحمد",true,true,false,false,false,false,false,false,false,false,false,false,false,false,false,true,false,true,true,true,true,true,true,true,true,true,false,true,false,true,"01","1976-09-16","1978-09-16",null,"",0,2,2,true,false,false,false,1,1,1,true,false,false,false,false,false,6635,1020,530,3677,false,0,null,null,false,0,false,0,null,null,false,null,"",false]
["52656J","52656J","INSTITUTION LES CRETES"," مؤسسة لكريط","","06","142","1420111","1","1","573 BD MODIBO KEITA, LES CRETES, CASA","شارع موديبوكيتا ، 573 الفداء ",20550,"CASABLANCA","شارع موديبوكيتا ، 573 الفداء ","0522817891","0522829707","groupe.lescretes@yahoo.fr","200","",false,false,0,true,false,false,false,false,false,false,false,0,"BE 92793",774093,"ABDESSAMAD MATAOUI","عبدالصمد معطاوي",true,true,false,false,false,false,false,false,false,false,false,false,false,false,false,false,false,true,true,true,true,false,true,true,true,false,false,true,false,false,"01","1974-10-10","1976-09-16",null,"",0,0,0,true,false,false,false,1,1,1,true,false,false,false,false,false,5425,4123,181,0,false,0,null,null,false,0,false,0,null,null,false,null,"",false]
["54599W","54599W","LA RESIDENCE 2 PRIVEE","الإقامة 2 الخصوصية","","06","142","1420113","1","1","","شارع 2 مارس رقم 85",0,"CASABLANCA","شارع 2 مارس رقم 85","0522820683","","GSR@GSR.MA","200","",false,false,0,true,false,false,false,false,false,false,false,null,"B761941",334563,"FASSIH FATIHA","فتيحة فصيح",true,true,false,false,false,false,false,false,false,false,false,false,false,false,false,false,false,true,true,true,true,true,true,true,false,false,false,true,false,false,"01","1965-10-01","1967-10-01",null,"",0,0,0,true,false,false,false,1,1,2,true,false,false,false,false,false,3170,1863,383,0,false,0,null,null,false,0,false,0,null,null,false,null,"",false]
["50705N","50705N","Institut Ouadi Ennil","معهد وادي النيل","01","06","142","1420111","1","1","N° 505, Bd. Mohammed VI (ex. Route Mediouna) - Al Idrissia","رقم 505، شارع محمد السادس (طريق مديونة) - الإدريسية",20550,"Casablanca","رقم 505، شارع محمد السادس (طريق مديونة) - الإدريسية","022-28-18-68","___-__-__-__","","200","",false,false,0,true,false,false,false,false,false,false,false,0," b454772",315872,"ICHOU HASSAN","حسن إيشو",true,true,false,false,false,false,false,false,false,false,false,false,false,false,false,false,false,true,true,true,true,true,true,true,true,true,false,true,false,true,"01","1981-09-16","1983-09-16",null,"",0,0,0.1,true,false,false,false,1,1,1,true,false,false,false,false,false,8400,1800,120,1800,false,0,null,null,false,0,false,0,null,null,false,null,"",false]
["50706P","50706P","INSTITUTION Ennasr","مؤسسة النصر","01","06","142","1420111","1","1","Bd. Grande Ceinture, Rue 17, cite Omar Ibn El Khattab","شارع الحزام الكبير، زاوية زنقة 17، حي عمر بن الخطاب - الإدريسية",20550,"Casablanca","شارع الحزام الكبير، زاوية زنقة 17، حي عمر بن الخطاب - الإدريسية","0522803582","___-__-__-__","ets.ennasr1@menara.ma","200","",true,true,0,true,false,false,false,false,false,false,false,0,"T 44213",639966,"ABDELAZIZ EL MOSTAKIM","عبد العزيز المستقيم",false,true,false,false,false,false,false,false,false,false,false,false,false,false,false,true,false,true,true,true,true,false,true,true,true,false,false,true,false,true,"01","1982-09-16","1984-09-16",null,"",0,1,0,true,false,false,false,1,1,1,true,false,false,false,false,false,4403,1790,710,703,false,0,null,null,false,0,false,0,null,null,false,null,"",false]
["50707R","50707R","Ecole Attawfiq","مدرسة التوفيق","01","06","142","1420111","1","1","Cité Omar Ibn El Khattab, Rue 6 N° 8 -  Al Idrissia","حي عمر بن الخطاب، زنقة 6 رقم 8 - الإدريسية",20550,"Casablanca","حي عمر بن الخطاب، زنقة 6 رقم 8 - الإدريسية","0522824902","0522805430","","200","",false,false,null,false,false,false,false,false,false,false,false,0," ",0," "," ",false,false,false,false,false,false,false,false,false,false,false,false,false,false,false,false,false,true,true,true,true,true,true,true,false,false,false,false,false,false,"01","1950-10-01","1952-10-01","2008-09-01","1",0,0,0,true,false,false,false,1,1,1,true,false,false,false,false,false,4144,2576,0,0,false,0,null,null,false,0,false,0,null,null,false,null,"",false]
["50708S","50708S","Lycée Al Farah ","ثانوية الفرح","01","06","142","1420111","1","1","Amal II, Rue 68, N° 3- Al Idrissia","الأمل 2، زنقة 68، رقم 3- الإدريسية",20550,"Casablanca","الأمل 2، زنقة 68، رقم 3- الإدريسية","0522283699","0522283699","farahinfopriv@yahoo.fr","200","",false,false,0,true,false,false,false,false,false,false,false,0,"B 592009",354849,"BYA   ABDELKRIM","عبد الكريم   بيا",true,true,false,false,false,false,false,false,false,false,false,false,false,false,false,false,false,true,true,true,true,true,true,true,false,false,false,true,false,false,"01","1962-10-01","1964-10-01",null,"",0,0.5,0,true,false,false,false,1,1,1,true,false,false,false,false,false,3473,1700,49,240,false,0,null,null,false,0,false,0,null,null,false,null,"",false]
["50709T","50709T","LYCEE Anwal ","ثانوية أنوال","01","06","142","1420111","1","1","N° 1270, Avenue Al Fida, Ain Chiffa III - AL Idrissia","رقم 1270، شارع الفداء، عين الشفاء 3 - الإدريسية",20550,"Casablanca","رقم 1270، شارع الفداء، عين الشفاء 3 - الإدريسية","0522823126","0522823125","anwal.ecole@gmail.com","200","",true,true,0,true,false,false,false,false,false,false,false,0," b691573",378597," ouardi jamila"," وردي جميلة",false,true,false,false,false,false,false,false,false,false,false,false,false,false,false,false,false,true,true,true,true,true,true,true,true,true,false,true,false,true,"01","1970-10-01","1972-10-01",null,"",0,0,0,true,false,false,false,1,1,1,true,false,false,false,false,false,4278,2877,784,617,false,0,null,null,false,0,false,0,null,null,false,null,"",false]
["50710U","50710U","Ecole Al Hayat El Islamia","مدرسة الحياة الإسلامية","01","06","142","1420111","1","1","Cité Korea, Rue 28, N° 47 - Al Fida","حي القريعة، زنقة 28، رقم 47 - الفداء",20550,"Casablanca","حي القريعة، زنقة 28، رقم 47 - الفداء","0522280672","","elhayat_elislamiya@live.fr","200","",true,true,0,true,false,false,false,false,false,false,false,0,"w53979",240776,"SAAD BRAHIM","سعد ابراهيم",false,true,false,false,false,false,false,false,false,false,false,false,false,false,false,true,false,true,true,true,true,true,true,true,false,false,false,true,false,false,"01","1973-10-01","1975-09-16",null,"",0,0,0,true,false,false,false,1,1,1,true,false,false,false,false,false,180,1000,217,0,false,0,null,null,false,0,false,0,null,null,false,null,"",false]
["50711V","50711V","Ecole Ibnou El AtlaS","مدرسة ابن الأطلس","01","06","142","1420111","1","1","Bd. El Fida, Derb Chorfa Et Tolba, Rue 18 , N° 4 - Al Fida","شارع الفداء، درب الشرفاء و الطلبة، زنقة 18، رقم 4 - الفداء",20550,"Casablanca","شارع الفداء، درب الشرفاء و الطلبة، زنقة 18، رقم 4 - الفداء","0522283656","___-__-__-__","ibnoalatlas@gmail.com","200","",true,true,0,true,false,false,false,false,false,false,false,0,"B239904",698478,"AKIFI ABDELMAJID","عاكفى عبد المجيد",false,true,false,false,false,false,false,false,false,false,false,false,false,false,false,false,false,true,true,true,true,true,true,true,false,false,false,true,false,false,"01","1970-10-01","1973-10-01",null,"",0,50,100,true,false,false,false,1,1,1,true,false,false,false,false,false,1192,787,409,200,false,0,null,null,false,0,false,0,null,null,false,null,"",false]
["50712W","50712W","ECOLE Al Wahda Al Arabia","مدرسة الوحدة العربية","01","06","142","1420111","1","1","N° 71, Bd. Capitaine Idriss Mesfioui -  Al Fida","رقم 71، شارع القبطان إدريس المسفيوي - الفداء",20550,"Casablanca","رقم 71، شارع القبطان إدريس المسفيوي - الفداء","0522811776","___-__-__-__","elwahdaelarabia@gmail.com","200","",false,false,0,true,false,false,false,false,false,false,false,0,"B 599625",334535,"SAYAN ABDELAZIZ","صيان عبد العزيز",false,true,false,false,false,false,false,false,false,false,false,false,false,false,false,false,false,true,true,true,true,false,true,true,false,false,false,true,false,false,"01","1959-10-01","1961-10-01",null,"",0,1,0,true,false,false,false,1,1,1,true,false,false,false,false,false,3647,1401,0,0,false,0,null,null,false,0,false,0,null,null,false,null,"",false]
["50713X","50713X","ETABLISSEMENT Ahmed Chawqui","مؤسسة أحمد شوقي","01","06","142","1420111","1","1","N° 73, Avenue Nador - Al Fida","رقم 73، شارع الناظور - الفداء",20550,"Casablanca","رقم 73، شارع الناظور - الفداء","0522806492","___-__-__-__","gs_ahmed_chaouki@hotmail.FR","200","",false,false,0,true,false,false,false,false,false,false,false,0," I54514",315662,"ABDERRAHIM RHARIBI"," عبد الرحيم غريبي",false,true,false,false,false,false,false,false,false,false,false,false,false,false,false,true,false,true,true,true,true,true,true,true,true,true,false,true,false,true,"01","1959-10-01","1961-10-01",null,"",0,1,0.5,true,false,false,false,1,1,1,true,false,false,false,false,false,2712,760,100,785,false,0,null,null,false,0,false,0,null,null,false,null,"",false]
["50714Y","50714Y"," Assounna"," السنة","01","06","142","1420113","1","1","Hay Es-smara, Rue 8, N° 4 - Bouchentouf","حي السمارة، زنقة 8، رقم 4 - بوشنتوف",20500,"Casablanca","حي السمارة، زنقة 8، رقم 4 - بوشنتوف","022-28-69-05","___-__-__-__","","200","",false,false,0,true,false,false,false,false,false,false,false,0,"b571455",317742,"aBDELKHALEK ABDELILAH","عبد الخالق عبد الإله",false,true,false,false,false,false,false,false,false,false,false,false,false,false,false,false,false,true,true,true,true,false,true,true,false,false,false,true,false,true,"01","1938-10-01","1947-10-01",null,"",0,1,0,true,false,false,false,1,1,1,true,false,false,false,false,false,4518,1510,268,0,false,0,null,null,false,0,false,0,null,null,false,null,"",false]
["50715Z","50715Z","Sidi Mohamed Ben Youssef","سيدي محمد بن يوسف","01","06","142","1420113","1","1","N° 63, Rue Mounaster - Bouchentouf","رقم 63، زنقة موناستير - بوشنتوف",20500,"Casablanca","رقم 63، زنقة موناستير - بوشنتوف","022-28-12-94","___-__-__-__","ECOLE1946@hotmail.FR","200","",false,false,0,true,false,false,false,false,false,false,false,0,"B 424579",887129,"MITARI NOUFISSA","ميطاري نفيسة",false,true,false,false,false,false,false,false,false,false,false,false,false,false,false,false,false,true,true,true,true,true,true,true,false,true,false,true,false,true,"01","1947-01-01","1947-01-01",null,"",0,1,1,true,false,false,false,1,1,1,true,false,false,false,false,false,2000,500,0,0,false,0,null,null,false,0,false,0,null,null,false,null,"",false]
["50716A","50716A","Ecole Echaâb El Mohammadi","مدرسة الشعب المحمدي","01","06","142","1420113","1","1","Hay Laâyoune, Rue 47, N° 28 - Bouchentouf","حي العيون، زنقة 47، رقم 28 - بوشنتوف",20500,"Casablanca","حي العيون، زنقة 47، رقم 28 - بوشنتوف","022-28-19-16","___-__-__-__","","200","",false,false,0,true,false,false,false,false,false,false,false,0,"B 512826",882614,"EJOUAHRI FATIHA","الجواهري فتيحة",false,true,false,false,false,false,false,false,false,false,false,false,false,false,false,false,false,true,true,true,true,true,true,true,false,false,false,true,false,false,"01","1964-10-01","1966-10-01",null,"",0,2,0,true,false,false,false,1,1,1,true,false,false,false,false,false,4954,1980,1112,0,false,0,null,null,false,0,false,0,null,null,false,null,"",false]
["50717B","50717B","Ecole El Ahrar","مدرسة الأحرار","01","06","142","1420113","1","1","N° 109, Boulevard El Gharb - Bouchentouf","رقم 109، شارع الغرب - بوشنتوف",20500,"Casablanca","رقم 109، شارع الغرب - بوشنتوف","0522830018","___-__-__-__","","200","",false,false,0,true,false,false,false,false,false,false,false,0,"w56715",240659,"KHADIRI MOHAMMED","محمد خديري",true,true,false,false,false,false,false,false,false,false,false,false,false,false,false,true,false,true,true,true,true,false,true,true,true,false,false,true,false,true,"01","1966-10-01","1968-10-01",null,"",0,2,1,true,false,false,false,1,1,1,true,false,false,false,false,false,10300.549999999999,3938,1953,519,true,0,"1968-10-01","1992-07-01",false,0,false,0,null,null,false,null,"",false]
["50718C","50718C","Ecole Al Anouar","مدرسة الأنوار","01","06","142","1420113","1","1","Rue 39, NO 274 - Bouchentouf","زنقة 39، رقم 274 - بوشنتوف",20500,"Casablanca","زنقة 39، رقم 274 - بوشنتوف","022-28-05-72","___-__-__-__","","200","",false,false,0,true,false,false,false,false,false,false,false,0," a545292",383087," wahi amina"," واحي أمينة",false,true,false,false,false,false,false,false,false,false,false,false,false,false,false,false,false,true,true,true,true,true,true,true,false,true,false,true,false,false,"01","1980-09-16","1982-09-16",null,"",0,0.8,0.5,true,false,false,false,1,1,1,true,false,false,false,false,false,8180,1873,2176,5860,false,0,null,null,false,0,false,0,null,null,false,null,"",false]
["50719D","50719D","Ecole Al Maârif","مدرسة المعارف","01","06","142","1420113","1","1","N° 7, Avenue Nador, l'Hermitage - Bouchentouf","رقم 7، شارع الناظور، لارميطاج - بوشنتوف",20500,"Casablanca","رقم 7، شارع الناظور، لارميطاج - بوشنتوف","022-28-89-13","___-__-__-__","","200","",true,true,0,true,false,false,false,false,false,false,false,0,"B 759655",379234,"TEMRAOUI AZZEDDINE","تمراوي عز الدين",false,true,false,false,false,false,false,false,false,false,false,false,false,false,false,true,false,true,true,true,true,false,true,true,false,false,false,true,false,false,"01","1960-10-01","1962-10-01",null,"",0,0.5,0.5,true,false,false,false,1,1,1,true,false,false,false,false,false,2511,737,267,150,true,0,"1962-10-01","1992-07-01",false,0,false,0,null,null,false,null,"",false]
["50720E","50720E","Institut rachad PRIVE","معهد الرشاد العلمي ","01","06","142","1420113","1","1","N° 1, Avenue Nador - Bouchentouf","رقم 1، نهج الناظور - بوشنتوف",20500,"Casablanca","رقم 1، نهج الناظور - بوشنتوف","022-28-62-74","","institut.rachad@gmail.com","200","",true,true,0,true,false,false,false,false,false,false,false,0," b448391",316053," elhokmi mohamed"," الحكمي محمد",false,true,false,false,false,false,false,false,false,false,false,false,false,false,false,false,false,true,true,true,true,true,true,true,false,false,false,true,false,false,"01","1969-10-01","1971-10-01",null,"",0,2,2,true,false,false,false,1,1,1,true,false,false,false,false,false,1105,723,0,0,false,0,null,null,false,0,false,0,null,null,false,null,"",false]
["50721F","50721F","Ecole El Idrissi Privée","مدرسة الإدريسي الخصوصية","01","06","142","1420113","1","1","Derb El Mitr, Rue 4, N° 26 - Bouchentouf","درب المتر، زنقة 4، رقم 26 - بوشنتوف",20500,"Casablanca","درب المتر، زنقة 4، رقم 26 - بوشنتوف","0522283449","___-__-__-__","ecoleelidrissi@outlook.fr","200","",true,true,0,true,false,false,false,false,false,false,false,0,"bh15184",355661,"belahmer samira","سميرة بلحمر",false,true,false,false,false,false,false,false,false,false,false,false,false,false,false,false,false,true,true,true,true,false,true,true,false,false,false,true,false,true,"01","1954-10-01","1956-10-01",null,"",0,1,0,true,false,false,false,1,1,1,true,false,false,false,false,false,2255,600,200,220,true,0,"1956-10-01","1992-07-01",false,0,false,0,null,null,false,null,"",false]
["50722G","50722G","Ecole El Houda","مدرسة الهدى","01","06","142","1420113","1","1","N° 3, Avenue Nador - Bouchentouf","رقم 3، نهج الناظور - بوشنتوف",20250,"Casablanca","رقم 3، نهج الناظور - بوشنتوف","022-28-12-68","___-__-__-__","alhoudainstitut@gmail.com","200","",true,true,0,true,false,false,false,false,false,false,false,0,"B500406",338164,"FOUZIA ELMOKHTARI","المختاري فوزية",false,true,false,false,false,false,false,false,false,false,false,false,false,false,false,false,false,true,true,true,true,true,true,true,false,false,false,true,false,false,"01","1954-10-01","1956-10-01",null,"",0,1,0,true,false,false,false,1,1,1,true,false,false,false,false,false,2000,770,530,0,true,0,"1956-10-01","1992-07-01",false,0,false,0,null,null,false,null,"",false]
["50723H","50723H","AJIAL AL FALAH","أجيال الفلاح","01","06","142","1420113","1","1","108 AVENUE Ahmed Sabague","شارع أحمد الصباغ، رقم 108",20500,"Casablanca","شارع أحمد الصباغ، رقم 108","0522837201","___-__-__-__","falah1991@hotmail.fr","200","",true,true,0,true,false,false,false,false,false,false,false,0,"B156178",110320,"ACHAKA MOHAMMED","عشاقة محمد",true,true,false,false,false,false,false,false,false,false,false,false,false,false,false,false,false,true,true,true,true,false,true,true,true,false,false,true,false,false,"01","1945-10-01","1947-10-01",null,"",0,1,0,true,false,false,false,1,1,1,true,false,false,false,false,false,3803,2048,157,0,true,0,"1947-10-01","1992-07-01",false,0,false,0,null,null,false,null,"",false]
["50724J","50724J","Ecole Abi Chouaib Al Azemmouri II","مدرسة أبي شعيب الأزموري 2","01","06","142","1420113","1","1","N° 51, Rue el khouzama La Gironde - ","رقم 51، زنقة الخزامى لاجيروند -",20500,"Casablanca","رقم 51، زنقة الخزامى لاجيروند -","0522-803125","0522-850134","ecoleazemmouri@yahoo.fr","200","",true,true,0,true,false,false,false,false,false,false,false,0,"B699842",317597,"CHERKI DEHLI","الشرقي دهلي",false,true,false,false,false,false,false,false,false,false,false,false,false,false,false,false,false,true,true,true,true,false,true,true,false,true,false,true,false,true,"01","1970-10-01","1972-10-01",null,"",0,1,0,true,false,false,false,1,1,1,true,false,false,false,false,false,1502,994,99,40,false,0,null,null,false,0,false,0,null,null,false,null,"",false]
["50725K","50725K","Institut Hatim","معهد حاتم","01","06","142","1420113","1","1","Bd. Mohamed VI Et Rue Lagaronne, N° 2 - Bouchentouf","شارع محمد السادس و زنقة لاكارون، رقم 2 -بوشنتوف",20500,"Casablanca","شارع محمد السادس و زنقة لاكارون، رقم 2 -بوشنتوف","022-80-70-06","___-__-__-__","institut.hatim1973@gmail.com","200","",true,true,0,true,false,false,false,false,false,false,false,0," B670685",356693," CHAHDALI AHMED"," شهداني أحمد",true,true,false,false,false,false,false,false,false,false,false,false,false,false,false,true,false,true,true,true,true,false,true,true,true,true,false,true,false,true,"01","1960-10-01","1962-10-01",null,"",0,1,0,true,false,false,false,1,1,1,true,false,false,false,false,false,3710,3200,510,0,false,0,null,null,false,0,false,0,null,null,false,null,"",false]
["50726L","50726L","Institution Maintenon","مؤسسة مانتونان","01","06","142","1420113","1","1","N° 17, Boulevard 2 Mars - Mers Sultan","رقم 17، شارع 2 مارس - مرس السلطان",20500,"Casablanca","رقم 17، شارع 2 مارس - مرس السلطان","022-22-15-43","","institution.maintenon17@gmail.com","200","",false,false,0,true,false,false,false,false,false,false,false,0,"B477697",338043,"ESSAWTI HABIBA","الصوتي حبيبة",false,true,false,false,false,false,false,false,false,false,false,false,false,false,false,false,false,true,true,true,true,false,false,true,false,false,false,true,false,false,"01","1969-10-01","1971-10-01",null,"",0,1,0,true,false,false,false,1,1,1,true,false,false,false,false,false,1789,1084,127,0,false,0,null,null,false,0,false,0,null,null,false,null,"",false]
["50727M","50727M","Ecole du Prince Moulay Hassan","مدرسة  الأمير مولاي الحسن","01","06","142","1420113","1","1","N° 32, Boulevard Moulay Idriss 1 er - Mers Sultan","رقم 32، شارع مولاي إدريس الأول - مرس السلطان",20500,"Casablanca","رقم 32، شارع مولاي إدريس الأول - مرس السلطان","022-28-56-38","022-28-56-38","","200","",false,false,0,true,false,false,false,false,false,false,false,0," BE 302351",355782,"EL KARD  ABDEL ILAH","عبدالاله  الكرد",true,true,false,false,false,false,false,false,false,false,false,false,false,false,false,false,false,true,true,true,true,true,true,true,false,false,false,true,false,false,"01","1959-10-01","1961-10-01",null,"",0,1,0,true,true,false,false,1,1,1,true,false,false,false,false,false,3245,1445,0,240,false,0,null,null,false,0,false,0,null,null,false,null,"",false]
["50728N","50728N","Institution Madania","مؤسسة المدنية","01","06","142","1420113","1","1","N° 29, Rue Ibn Toumert - Mers Sultan","رقم 29، زنقة ابن تومرت - مرس السلطان",20490,"Casablanca","رقم 29، زنقة ابن تومرت - مرس السلطان","0522301654","0522446587","contact@institution-madania.com","200","",true,true,0,true,false,false,false,false,false,false,false,0,"Q47837",172096,"simouh el mostafa","سموح المصطفى",true,true,false,false,false,false,false,false,false,false,false,false,false,false,false,false,false,true,true,true,true,true,true,true,true,false,false,true,false,true,"01","1950-10-01","1952-10-01",null,"",0,0,1.5,true,false,false,false,1,1,1,true,false,false,false,false,false,2599.7199999999998,968,16,0,true,0,"1952-10-01","1992-07-01",false,0,false,0,null,null,false,null,"",false]
["50729P","50729P","Ecole Bouâanania","مدرسة البوعنانية","01","06","142","1420113","1","1","N° 67, Boulevard Omar El Idrissi - Mers Sultan","رقم 67، شارع عمر الإدريسي - مرس السلطان",20500,"Casablanca","رقم 67، شارع عمر الإدريسي - مرس السلطان","022-22-70-80","","bouanania@hotmail.com","200","",true,true,0,true,false,false,false,false,false,false,false,0," be 47316",383669," fartout mohamed"," فرتوت محمد ",false,true,false,false,false,false,false,false,false,false,false,false,false,false,false,true,false,true,true,true,true,true,true,true,true,false,false,true,false,true,"01","1950-10-01","1952-10-01",null,"",0,0,1,true,false,false,false,1,1,1,true,false,false,false,false,false,2395,977,30,0,true,0,"1952-10-01","1992-07-01",false,0,false,0,null,null,false,null,"",false]
["50730R","50730R","Ecole Omar El Idrissi","مدرسة عمر الإدريسي","01","06","142","1420113","1","1","N° 28, Boulevard Omar El Idrissi - Mers Sultan","رقم 28، شارع عمر الإدريسي - مرس السلطان",20500,"Casablanca","رقم 28، شارع عمر الإدريسي - مرس السلطان","0522302359","0522314772","amirzahra70@gmail.com","200","",false,false,0,false,false,false,false,false,false,false,false,0," ",0," "," ",false,false,false,false,false,false,false,false,false,false,false,false,false,false,false,false,false,true,true,true,true,true,true,true,false,false,false,false,false,false,"01","1960-10-01","1962-10-01","2008-09-01","1",0,1,0,true,false,false,false,1,1,1,true,false,false,false,false,false,9619.6,1710,2134.75,4195.55,false,0,null,null,false,0,false,0,null,null,false,null,"",false]
["50731S","50731S","Groupe Scolaire La Résidence 1","مجموعة مدارس الإقامة 1","01","06","142","1420113","1","1","N° 157, Boulevard Lahcen Ouiddar - Mers Sultan","رقم 157، شارع لحسن وإيدار - مرس السلطان",20500,"Casablanca","رقم 157، شارع لحسن وإيدار - مرس السلطان","022-30-75-52","022-44-14-16","gsr@gsr.ac.ma","200","",true,true,0,true,false,false,false,false,false,false,false,0,"b463781",887127,"laasli fatima","فاطمة العسلي",false,true,false,false,false,false,false,false,false,false,false,false,false,false,false,false,false,true,true,true,true,true,true,true,false,false,false,true,false,false,"01","1960-10-01","1962-12-17",null,"",0,1,0,true,false,false,false,1,1,1,true,false,false,false,false,false,4943,1709,1711,73,false,0,null,null,false,0,false,0,null,null,false,null,"",false]
["50732T","50732T"," AL-AMANA"," الأمانة","01","06","142","1420113","1","1","N° 11, Rue Caid Ahmed - Mers Sultan","رقم 11 ، زنقة القائد أحمد - مرس السلطان",20500,"Casablanca","رقم 11 ، زنقة القائد أحمد - مرس السلطان","022-81-33-37","___-__-__-__","al-amana@menara.ma","200","",false,false,0,false,false,false,false,false,false,false,false,0," ",0," "," ",false,false,false,false,false,false,false,false,false,false,false,false,false,false,false,false,false,true,true,true,true,false,true,true,false,false,false,false,false,false,"01","1960-10-01","1962-10-01","2008-09-01","1",0,1,0,true,false,false,false,1,1,1,true,false,false,false,false,false,3366.85,487.78,558.4,951.67,false,0,null,null,false,0,false,0,null,null,false,null,"",false]
["50733U","50733U","Institut La Princesse LALA Aicha","معهد الأميرة للا عائشة","01","06","142","1420113","1","1","N° 1, Rue Al Masjid Houbous - Mers Sultan","رقم 1، زنقة المسجد الأحباس - مرس السلطان",20500,"Casablanca","رقم 1، زنقة المسجد الأحباس - مرس السلطان","0522309795","","","200","",false,false,0,false,false,false,false,false,false,false,false,0," ",0," "," ",false,false,false,false,false,false,false,false,false,false,false,false,false,false,false,false,false,true,true,true,true,true,true,true,false,false,false,false,false,false,"01","1960-10-01","1962-10-01","2008-09-01","1",0,1,0,true,false,false,false,1,1,1,true,false,false,false,false,false,3823.12,312,16,2303,true,0,"1962-10-01","1992-07-01",false,0,false,0,null,null,false,null,"",false]
["50734V","50734V","Lycée Al Maarifa","ثانوية المعرفة","01","06","142","1420113","1","1","N° 27, Rue Rome - Mers Sultan","رقم 27، زنقة روما - مرس السلطان",20500,"Casablanca","رقم 27، زنقة روما - مرس السلطان","0522287494","___-__-__-__","lyceealmaarifa@gmail.com","200","",true,true,0,true,false,false,false,false,false,false,false,0,"BH101243",377790,"JANAH SAIDA","جناح سعيدة",false,true,false,false,false,false,false,false,false,false,false,false,false,false,false,false,false,true,true,true,true,false,true,true,false,false,false,true,false,false,"99","1958-10-01","1960-10-01",null,"",0,1,1,true,false,false,false,1,1,1,true,false,false,false,false,false,421,609,21,0,false,0,null,null,false,0,false,0,null,null,false,null,"",false]
["50735W","50735W","Lycée Groupe Scolaire LA RESIDENCE","ثانوية مجموعة مدارس الإقامة","01","06","142","1420113","1","1","N° 89, Boulevard 2 Mars - Mers Sultan","رقم 89، شارع 2 مارس - مرس السلطان",20500,"Casablanca","رقم 89، شارع 2 مارس - مرس السلطان","0522809050","0522809052","gsr@gsr.ac.ma ","200","",false,false,0,true,false,false,false,false,false,false,false,0,"B573994",390990,"kssili mUSTAPHA","المصطفى اقصلي",false,true,false,false,false,false,false,false,false,false,false,false,false,false,false,false,false,true,true,true,true,true,true,true,false,false,false,true,false,true,"01","1922-10-01","1924-10-01",null,"",0,0.2,0.5,true,false,false,false,1,1,1,true,false,false,false,false,false,3281,880,817,803,false,0,null,null,false,0,false,0,null,null,false,null,"",false]
["50736X","50736X"," Jardin d enfants LE MANEGE"," روض الأطفال لومانيج","01","06","142","1420113","1","1","N° 19, Rue De Rome - Mers Sultan","رقم 19، زنقة روما - مرس السلطان",20500,"Casablanca","رقم 19، زنقة روما - مرس السلطان","0522273260","0522273262"," ecolelemanege@menara.ma","801","18235V",false,false,0,false,false,false,false,false,false,false,false,0," ",0," "," ",false,false,false,false,false,false,false,false,false,false,false,false,false,false,false,false,false,false,false,false,false,false,false,false,false,false,false,false,false,false,"01","1959-10-01","1961-10-01",null,"1",0,0,0,true,false,false,false,1,1,1,true,false,false,false,false,false,3200,1860,240,0,false,0,null,null,false,0,false,0,null,null,false,null,"",false]
["50737Y","50737Y","Maternelle du Groupe Scolaire de la Résidence 3","3روض مجموعة مدارس الإقامة ","01","06","142","1420113","1","1","N° 32, Rue Omar El Idrissi - Mers Sultan","رقم 32، زنقة عمر الإدريسي - مرس السلطان",20500,"Casablanca","رقم 32، زنقة عمر الإدريسي - مرس السلطان","0522450592","0522450593","gsr@ac.ma","200","",true,true,0,true,false,false,false,false,false,false,false,0," B723501",774371," kadrou abdelhak"," قادرو عبد الحق",true,true,false,false,false,false,false,false,false,false,false,false,false,false,false,false,false,true,true,true,true,false,true,true,false,false,false,true,false,false,"01","1945-10-01","1947-10-01",null,"",0,0,0,true,false,false,false,1,1,1,true,false,false,false,false,false,2496,2209,0,0,false,0,null,null,false,0,false,0,null,null,false,null,"",false]
["50738Z","50738Z","Groupe Scolaire La Résidence II","مجموعة مدارس الإقامة 2","01","06","142","1420181","1","1","N° 36, Rue Ibn Toumert - Mers Sultan","رقم 36، زنقة ابن تومرت - مرس السلطان",20500,"Casablanca","رقم 36، زنقة ابن تومرت - مرس السلطان","0522442660","0522305909","gsr@gsr.ac.ma","200","",true,true,0,false,false,false,false,false,false,false,false,0," ",0," "," ",false,true,false,false,false,false,false,false,false,false,false,false,false,false,false,false,false,true,true,true,true,true,true,true,false,false,false,true,false,false,"01","1940-10-01","1942-10-01",null,"",0,0,0,true,false,false,false,1,1,1,true,false,false,false,false,false,2903,2399,50,0,false,0,null,null,false,0,false,0,null,null,false,null,"",false]
["50739A","50739A","Erable-Institut My Idriss Al Azhar","إيرابل - معهد مولاي إدريس الأزهر","01","06","142","1420181","1","1","N° 8-12, Avenue Ahmed Figuigui -  Méchouar de Casablanca","رقم 8-12، شارع أحمد الفكيكي - مشوار الدار البيضاء",20500,"Casablanca","رقم 8-12، شارع أحمد الفكيكي - مشوار الدار البيضاء","0522309609","0522447287","","200","",false,false,0,true,false,false,false,false,false,false,false,0,"j224730",173252,"MOHAMED KANDY","محمد كندي",false,true,false,false,false,false,false,false,false,false,false,false,false,false,false,false,false,true,true,true,true,false,true,true,false,true,false,true,false,true,"01","1953-10-01","1955-10-01",null,"",0,1,0,true,false,false,false,1,1,1,true,false,false,false,false,false,4086,1661,60,0,true,0,"1956-10-01","1992-07-01",false,0,false,0,null,null,false,null,"",false]
["01541Z","82020P07","ECOLE PRIMAIRE LALA ASMAA ","مدرسة للا أسماء الابتدائية","01","06","142","1420113","1","","6 RUE LYSER","6 زنقة ليزير","20500","Al Fida Derb Sultan","الفداء مرس السلطان","022-28-54-94","-  -  -","mounir7@gmail.com","200","",false,false,0,false,false,false,false,false,false,false,false,0," ",0," "," ",false,false,false,false,false,false,false,false,false,false,false,false,false,false,false,false,false,true,true,true,true,true,true,true,false,false,false,false,false,false,"01","1957-10-01","1959-10-01","2008-09-01","1",0,1,0,true,false,false,false,1,1,1,true,false,false,false,false,false,4560,1190,1200,0,true,0,"1959-10-01","1992-07-01",false,0,false,0,null,null,false,null,"",false]
["01542A","82000S13","COLLEGE ZINEB ANNAFZAOUIA","الثانوية الإعدادية زينب النفزاوية","01","06","142","1420111","1","","HAY MIMOUNA IDRISSIA 4","حي ميمونة الإدريسية 4","20550","al fida derb sultan","الفداء مرس السلطان","0522815165","-  -  -","ABCHIR2@HOTMAIL.fr","300","",false,false,0,true,false,false,false,false,false,true,false,1,"b243499",232344,"aamoum smail","أعموم اسماعيل",false,false,false,true,false,false,false,false,false,false,false,false,false,false,false,false,false,true,true,true,true,true,true,false,false,false,false,true,false,false,"01","1966-10-01","1968-10-01",null,"",0,0,1,true,false,false,false,1,1,1,true,false,false,false,false,false,13000,5831,642,200,false,0,null,null,false,0,false,0,null,null,false,null,"",false]
["01543B","82000S14","COLLEGE IBN MESKAOUAIH","الثانوية الإعدادية ابن مسكويه","01","06","142","1420111","1","","IDRISSIA 2 HAY MIMOUNA","حي ميمونة الإدريسية 2","20550","al fida derb sultan","الفداء مرس السلطان","0522815310","-  -  -","","300","",false,false,0,true,false,false,false,false,false,true,false,1," b156212",177981,"kammah larbi","العربي قماح",false,false,false,true,false,false,false,false,false,false,false,false,false,false,false,false,false,true,true,true,true,true,true,false,false,false,false,true,false,false,"01","1975-09-16","1977-09-16",null,"",0,0,1,true,false,false,false,1,1,1,true,false,false,false,false,false,12596,8818,1246,1063,false,0,null,null,false,0,false,0,null,null,false,null,"",false]
["01544C","82000S15","COLLEGE SMARA","الثانوية الإعدادية السمارة","01","06","142","1420111","1","","IDRISSIA 2 BOULEVARD B","الادريسية 2 شارع ب","20550","al fida mers sultan","الفداء مرس السلطان","0522815173","-  -  -","Smara.college@yahoo.fr","300","",false,false,0,true,false,false,false,false,false,true,false,1,"B 161526",310765,"megloud lhassan","الحسن مكلود",false,false,false,true,false,false,false,false,false,false,false,false,false,false,false,false,false,true,true,true,true,true,true,false,false,false,false,true,false,false,"01","1982-09-16","1986-09-05",null,"",0,0,1,true,false,false,false,1,1,1,true,false,false,false,false,false,17000,1200,700,500,false,0,null,null,false,0,false,0,null,null,false,null,"",false]
["01545D","82000S05","COLLEGE MARIAM AL FIHRIA","الثانوية الإعدادية مريم الفهرية","01","06","142","1420111","1","","angle rue SRAGHNA et driss el massfioui","زاوية زنقة السراغنة و ادريس المسفيوي","20550","al fida derb sultan","الفداء مرس السلطان","0522280850","-  -  -","college.Maryam@yahoo.fr.","300","",true,true,0,true,false,false,false,false,false,true,false,2," e11926",953023,"NAJJAR AMINA","أمينة نجار ",false,false,false,true,false,false,false,false,false,false,false,false,false,false,false,false,false,true,true,true,true,true,true,false,false,true,false,true,false,true,"01","1950-10-01","1952-10-01",null,"",0,0,1,true,false,false,false,1,1,1,true,false,false,false,true,false,6450,2093,452,995,false,0,null,null,false,0,false,0,null,null,false,null,"",false]
["01546E","82000S06","COLLEGE AL JAHID","الثانوية الإعدادية الجاحظ","01","06","142","1420111","1","","68 derb chorfa  tolba","درب الشرفاء و الطلبة الزنقة 68","20550","al fida derb sultan","الفداء مرس السلطان","0522281085","-  -  -","","300","",true,true,0,true,false,false,false,false,false,true,false,3,"B 570873",886374,"gnaoui amina","كناوي أمينة",false,false,false,true,false,false,false,false,false,false,false,false,false,false,false,false,false,true,true,true,true,true,true,false,false,false,false,true,false,true,"01","1966-10-01","1968-10-01",null,"",0,-1,-1,true,false,false,false,1,1,1,true,false,false,false,false,false,3940,1340,0,600,false,0,null,null,false,0,false,0,null,null,false,null,"",false]
["01547F","82000S07","COLLEGE MOHAMED VI","الثانوية الإعدادية محمد السادس","01","06","142","1420111","1","","7 RUE TRIPOLI","زنقة 7 حي طرابلس","20550","Al Fida Derb Sultan","الفداء مرس السلطان","022282204","-  -  -","","300","",false,false,0,false,false,false,false,false,false,true,false,3,"COL",0," "," ",false,false,false,false,false,false,false,false,false,false,false,false,false,false,false,false,false,true,true,true,true,true,true,false,false,false,false,false,false,false,"01","1961-10-01","1963-10-01","2009-07-31","5",0,0,0,true,false,false,false,1,1,1,true,false,false,false,false,false,8954,3860,0,0,false,0,null,null,false,0,false,0,null,null,false,null,"",false]
["01548G","82000S08","LYCEE MOHAMED VI"," الثانوية التأهيلية محمد السادس","01","06","142","1420111","1","","HAY TRIPOLI RUE 7","حي طرابلس زنقة 7","20550","Al Fida Derb Sultan","الفداء مرس السلطان","0522281800","-  -  -","lyceem6fida1414@gmail.com","400","",false,false,0,true,false,false,false,false,false,false,false,2,"b736730",395927,"brahim talib","إبراهيم طالب",false,false,false,false,false,true,false,false,false,false,false,false,false,false,false,false,false,true,true,true,true,true,true,false,false,true,true,true,false,true,"01","1961-10-01","2009-09-01",null,"",0,1,0.5,true,false,false,false,1,1,1,true,false,false,false,false,false,13854,4911,0,120,false,0,null,null,false,0,false,0,null,null,false,null,"",false]
["01549H","82000S09","COLLEGE AL IMAM ALI","الثانوية الإعدادية الإمام علي","01","06","142","1420111","1","","BD MOUDIBOU KEITA AIN ESSEK","شارع موديبوكيتا عين الصك","20520","AL FIDA DERB SULTAN","الفداء مرس السلطان","0522283938","-  -  -","alaouisma@hotmail.fr","300","",true,true,0,true,false,false,false,false,false,false,false,1,"b 580382",340262,"alaoui maach my smail","علوي معاش مولاي اسماعيل",false,false,false,true,false,false,false,false,false,false,false,false,false,false,false,false,false,true,true,true,true,true,true,false,false,true,false,true,false,true,"01","1982-09-16","1984-09-16",null,"",0,0,500,true,false,false,false,1,1,1,true,false,false,false,false,false,7032,250,145,0,false,0,null,null,false,0,false,0,null,null,false,null,"",false]
["01550J","82000S10","COLLEGE AL GHAZALI","الثانوية الإعدادية الغزالي","01","06","142","1420111","1","","SIDI MAAROUF 3  BD MOUDIBOU KEITA","سيدي معروف 3 شارع موديبوكيتا","20550","Al Fida Derb Sultan","الفداء مرس السلطان","0522280245","","college-alghazali-fida-merssultan@outlook.fr","300","",false,false,0,true,false,false,false,false,false,true,false,1,"b558418",306589,"belaassal azeddine","عزالدين بلعسل",false,false,false,true,false,false,false,false,false,false,false,false,false,false,false,false,false,true,true,true,true,true,true,false,false,true,false,true,false,true,"01","1967-10-10","1967-10-10",null,"",0,0,0.5,true,false,false,false,1,1,1,true,false,false,false,false,false,4350,700,105,0,false,0,null,null,false,0,false,0,null,null,false,null,"",false]
["01551K","82000S11","COLLEGE AL ANDALOUS","الثانوية الإعدادية الأندلس","01","06","142","1420111","1","","HAY EL MASJID RUE H","زنقة ه حي المسجد","20550","Al Fida Derb Sultan","الفداء مرس السلطان","0522280026","","andalous-fida-mersultan@outlook.fr","300","",false,false,0,false,false,false,false,false,false,true,true,1," ",0," "," ",false,false,false,true,false,false,false,false,false,false,false,false,false,false,false,false,false,true,true,true,true,true,true,false,false,true,true,true,false,true,"01","1976-09-16","1978-09-16",null,"",0,0,0,true,false,false,false,1,1,1,true,false,false,false,false,false,14613,400,2664,3776,true,240,"1977-09-05",null,true,0,true,240,"1977-09-05",null,false,null,"",false]
["01552L","82010S03","COLLEGE ATTAHADI","الثانوية الإعدادية التحدي","01","06","142","1420113","1","","DERB El mITRE 2  RUE 11  L ERMITAGE","درب المتر 2 زنقة 11 لارميطاج","20500","Al Fida mers Sultan","الفداء مرس السلطان","0522280297","","","300","",true,true,0,true,false,false,false,false,false,true,false,1,"b581132",398266,"bahjaji abdelfetah","بهجاجي عبد الفتاح",false,false,false,true,false,false,false,false,false,false,false,false,false,false,false,false,true,true,true,true,true,true,true,false,false,false,false,true,false,false,"01","1962-10-01","1964-10-01",null,"",0,0,0,true,false,false,false,1,1,1,true,false,false,false,false,false,16690,1295,555,0,false,0,null,null,false,0,false,0,null,null,false,null,"",false]
["01553M","82010S04","COLLEGE AL MANSOUR ADDAHBI","الثانوية الإعدادية المنصور الذهبي","01","06","142","1420113","1","","DERB EL KABIR RUE LA CROIX","درب الكبير شارع لاكروى","20500","Al Fida Derb Sultan","الفداء مرس السلطان","0522801043","-  -  -","amahran@hotmail.fr","300","",true,true,0,true,false,false,false,false,false,false,false,2,"bh84066",55230," AMAHRANE FATIHA","أمهران فتيحة  ",false,false,false,true,false,false,false,false,false,false,false,false,false,false,false,false,true,true,true,true,true,true,true,false,false,false,false,true,false,false,"01","1964-10-01","1966-10-01",null,"",0,0.08,0.45,true,false,false,false,1,1,1,true,false,false,false,false,false,7087.03,1048.5,171,4290.8,false,0,null,null,false,0,false,0,null,null,false,null,"",false]
["01554N","82010S05","COLLEGE MOHAMED CHIKH","الثانوية الإعدادية محمد الشيخ","01","06","142","1420113","1","","DERB EL KABIR  RUE almahatta","درب الكبير زنقة المحطة","20500","Al Fida Derb Sultan","الفداء مرس السلطان","0522832535","-  -  -","abdellatif.elbouhali@taalim.ma","300","",true,true,0,true,false,false,false,false,false,true,false,1,"be 674898",1052126,"el bouhali abdellatif","عبد اللطيف البهالي",false,false,false,true,false,false,false,false,false,false,false,false,false,false,false,false,true,true,true,true,true,true,true,false,false,true,true,true,false,true,"01","1964-10-01","1978-10-01",null,"",0,0,1.5,true,false,false,false,1,1,1,true,false,false,false,false,false,4725,2210,200,0,false,0,null,null,false,0,false,0,null,null,false,null,"",false]
["01555P","82000S12","COLLEGE LAAYOUNE","الثانوية الإعدادية العيون","01","06","142","1420113","1","","DERB EL KABIR  RUE LA CROIX","درب الكبير شارع لاكروى","20500","Al Fida Derb Sultan","الفداء مرس السلطان","0522812065","-  -  -","hamidbenazizi58@yahoo.ma","300","",true,true,0,true,false,false,false,false,false,true,false,1,"B 553168",178464,"abdelhamid boukhali","عبد الحميد بوخلي",false,false,false,true,false,false,false,false,false,false,false,false,false,false,false,false,true,true,true,true,true,true,true,false,true,false,true,true,false,true,"01","1980-09-16","1982-09-16",null,"",0,1.6,0.45,true,false,false,false,1,1,1,true,false,false,false,false,false,3456,700,896,160,false,0,null,null,false,0,false,0,null,null,false,null,"",false]
["01556R","82020S03","COLLEGE RABIAA AL ADAOUIA","الثانوية الإعدادية رابعة العدوية","01","06","142","1420113","1","","RUE ELMASJID N 2 al ahbas casablanca","  . الأحباس .2 .زنقة المسجد","20500","Al Fida Derb Sultan","الفداء مرس السلطان","0522305319","-  -  -","LCrabiaddawia@gmail.com","300","",true,true,0,true,false,false,false,false,false,true,false,2,"b599920",874279,"soumia chkhayess","سومية اشخايص",false,false,false,true,false,false,false,false,false,false,false,false,false,false,false,false,false,true,true,true,true,true,true,false,false,false,false,true,false,false,"01","1940-10-01","1942-10-01",null,"",0,0,0,true,false,false,false,1,1,1,true,false,false,false,false,false,3034,450,144,450,false,0,null,null,false,0,false,0,null,null,false,null,"",false]
["01557S","82020S04","COLLEGE AL KASTALANI","الثانوية الإعدادية القسطلاني","01","06","142","1420113","1","","182 RUE AL IMAM AL KASTALANI","182 شارع القسطلاني حي الداخلة رقم ","20500","Al Fida Mers Sultan","الفداء مرس السلطان","0522304539","-  -  -","massitahmed@live.com","300","",true,true,0,true,false,false,false,false,false,true,false,1,"d111713",684250,"massit ahmed","احمد مسيط",false,false,false,true,false,false,false,false,false,false,false,false,false,false,false,false,false,true,true,true,true,true,true,false,false,false,false,true,false,false,"01","1924-10-01","1926-10-01",null,"",0,0,1,true,false,false,false,1,1,1,true,false,false,false,false,false,3494,1672,0,0,false,0,null,null,false,0,false,0,null,null,true,null,"",false]
["01558T","82020S05","COLLEGE IBN TACHFINE","الثانوية الإعدادية ابن تاشفين","01","06","142","1420113","1","","153 RUE LAHCEN OUIDDER","153 زنقة لحسن اويدار","20500","Al Fida Derb Sultan","الفداء مرس السلطان","0522306886","-  -  -","fouadrachida63@gmail.com","300","",false,false,0,true,false,false,false,false,false,true,false,1,"b599351",888005,"rachida fouad","رشيدة فؤاد",false,false,false,true,false,false,false,false,false,false,false,false,false,false,false,false,false,true,true,true,true,true,true,false,false,false,false,true,false,false,"01","1949-10-01","1951-10-01",null,"",0,0,1,true,false,false,false,1,1,1,true,false,false,false,false,false,3545,2100,1,0,false,0,null,null,false,0,false,0,null,null,true,null,"",false]
["01559U","82020S06","COLLEGE KHNATA BENT BEKKAR","الثانوية الإعدادية اخناثة بنت بكار","01","06","142","1420113","1","","174 RUE EL HADJ OMAR RIFFI","174  زنقة الحاج عمر الريفي","20490","Al Fida Mers Sultan","الفداء مرس السلطان","0522301215","-  -  -","collegekhnata@yahoo.fr","300","",false,false,0,true,false,false,false,false,false,true,false,1,"B94601",217787," MEGLOUD MOHAMED","مكلود محمد",false,false,false,true,false,false,false,false,false,false,false,false,false,false,false,false,false,true,true,true,true,true,true,false,false,false,true,true,false,true,"01","1959-10-01","1961-10-01",null,"",0,0,1,true,false,false,false,4,4,1,true,true,true,false,false,false,33077,13978,4112,15987,false,0,null,null,false,0,false,0,null,null,true,null,"",false]
["01560V","82000S02","LYCEE JAMAL EDDINe ALMAHIAOUI","الثانوية التأهيلية جمال الدين المهياوي","01","06","142","1420111","1","","EL AMAL 2  PROLONGEMENT BD AL FIDA","شارع الفداء الممتد حي الامل 2","20550","Al Fida Derb Sultan","الفداء مرس السلطان","0522288268","-  -  -","youssef.baassou602@gmail.com","400","",false,false,0,true,false,false,false,false,false,true,false,3,"d 208316",682786,"YOUSSEF BAASSOU","يوسف باعسو",false,false,false,false,false,true,true,false,false,false,false,false,false,false,false,false,false,true,true,true,true,true,true,false,true,false,true,true,false,true,"01","1968-10-01","1970-09-16",null,"",0,0,0,true,false,false,false,1,3,2,true,false,false,false,false,false,29339,18089,11250,600,false,0,null,null,false,0,false,0,null,null,false,null,"",false]
["01561W","82000S03","LYCEE SALAHEDDINE AL AYOUBI","الثانوية التأهيلية صلاح الدين الايوبي","01","06","142","1420111","1","","AMAL 2 PROLONGEMENT BD ALFIDA","أمل 2 امتداد شارع الفداء","20550","Al Fida Derb Sultan","الفداء مرس السلطان","0522284898","-  -  -","lycee.salah@yahoo.fr","400","",false,false,0,true,false,false,true,false,false,false,false,1,"B 366014",175865,"ahmed moukhliss","أحمد  مخليص",false,false,false,false,false,true,false,false,false,false,false,false,false,false,false,false,false,true,true,true,true,true,true,false,false,false,true,true,false,false,"01","1982-09-16","1984-09-16",null,"",0,0,0,true,false,false,false,1,1,1,true,false,false,false,false,false,2230,200,701,0,false,0,null,null,false,0,false,0,null,null,false,null,"",false]
["01562X","82000S04","LYCEE TAHA HOUSSEIN","الثانوية التأهيلية طه حسين","01","06","142","1420111","1","","IDRISSIA 2","حي الإدريسية 2","20550","Al Fida Derb Sultan","الفداء مرس السلطان","0522815237","-  -  -","daif.khalid@yahoo.fr","400","",false,false,0,true,false,false,true,false,false,true,false,3,"QUAL",154104,"mohammed waaziz","محمد وعزيز ",false,false,false,false,false,true,false,false,false,false,false,false,false,false,false,false,false,true,true,true,true,true,true,false,false,false,false,true,false,true,"01","1974-09-16","1976-09-16",null,"",0,0,0,true,false,false,false,1,1,1,true,false,false,false,false,false,30898,2100,1376,16561,false,0,null,null,false,0,false,0,null,null,true,null,"",false]
["01563Y","82000S01","LYCEE OUM AL BANINE","الثانوية التأهيلية أم البنين","01","06","142","1420111","1","","HAY EL MASJID RUE iii","حي المسجد زنقة 3","20550","Al Fida Derb Sultan","الفداء مرس السلطان","0522281115","-  -  -","","400","",false,false,0,true,false,false,false,false,false,true,false,2," a147856",214475,"KASSEM DAIFI","قاسم ديفي",false,false,false,false,false,true,false,false,false,false,false,false,false,false,false,false,false,true,true,true,true,true,true,false,false,false,true,true,false,false,"01","1974-09-16","1976-09-16",null,"",0,0,0,true,false,false,false,1,1,1,true,false,false,false,false,false,12486,9627,1109,0,false,0,null,null,false,0,false,0,null,null,false,null,"",false]
["01564Z","82010S01","LYCEE AL KHAOUARIZMI","الثانوية التأهيلية الخوارزمي","01","06","142","1420113","1","","BD LA GIRONDE","شارع لاجيروند","20500","Al Fida Derb Sultan","الفداء مرس السلطان","0522808332","0522-80-83-35","","404","",false,false,0,true,false,false,true,true,true,true,true,2," B562001",143850,"KOTNI MADANI","قطني المدني",false,false,false,false,false,true,false,true,false,true,false,false,false,false,false,false,false,true,true,true,true,true,true,false,true,true,true,true,false,true,"01","1919-10-01","1921-10-01",null,"",0,0,0,true,false,false,false,1,1,1,true,false,false,false,false,false,57357,13479,3300,24596,false,0,null,null,false,0,true,340,"1921-10-02",null,false,null,"",true]
["01565A","82010S02","LYCEE BIR ANZARANE","الثانوية التأهيلية بئرانزران","01","06","142","1420113","1","","BD LA GIRONDE  RUE LA DORDOGNE","زنقة لادوردون شارع لاجيروند","20500","Al Fida Derb Sultan","الفداء مرس السلطان","0522812917"," -","mouloudlak@hotmail.fr","400","",false,false,0,true,false,false,false,false,false,true,false,1,"X43646",177724,"azzouzi mouloud","مولود عزوزي",false,false,false,false,false,true,false,false,false,false,false,false,false,false,false,false,false,true,true,true,true,true,true,false,false,false,false,true,false,true,"01","1979-09-16","1981-09-16",null,"",0,0,0,true,false,false,false,1,1,1,true,false,false,false,false,false,11505,1800,208,814,false,0,null,null,false,0,false,0,null,null,false,null,"",false]
["01566B","82020S01","LYCEE MOHAMED V","الثانوية التأهيلية محمد الخامس","01","06","142","1420113","1","","BD 2 MARS","شارع 2 مارس","20500","Al Fida Derb Sultan","الفداء مرس السلطان","0522286002","0522-28-60-01","H.ELMOSTAFA@HOTmail.com","404","",false,false,0,true,false,false,true,true,false,false,true,3,"I 50644",175540,"HACHIMI EL MOSTAFA","هاشمي المصطفى",false,false,false,false,false,true,false,true,true,false,false,false,false,false,false,false,false,true,true,true,true,true,true,false,false,true,false,true,false,true,"01","1919-10-01","1921-10-01",null,"",0,0,0,true,false,false,false,1,1,1,true,false,false,false,false,false,43750,11000,2700,7873,false,0,null,null,false,0,true,400,"1987-09-16",null,true,null,"",false]
["01567C","82000S16","LYCEE AL BAKILLANI","الثانوية التأهيلية الباقلاني","01","06","142","1420111","1","","SIDI MAAROUF 4  RUE 50","سيدي معروف 4 زنقة 50","20550","Al Fida Derb Sultan","الفداء مرس السلطان","0522288678","0522288678   ","lahfidi@gmail.com","400","",false,false,0,true,false,false,false,false,false,true,false,2,"iB 6542",339611,"lahfidi bouabid","بوعبيد لحفيظي",false,false,false,false,false,true,false,false,false,false,false,false,false,false,false,false,false,true,true,true,true,true,true,false,true,true,true,true,false,true,"01","1993-09-16","1995-09-16",null,"",0,0.1,2,true,false,false,false,1,1,1,true,false,false,false,false,false,8119,1700,518,0,false,0,null,null,false,0,false,0,null,null,false,null,"",true]
["01568D","82020S02","LYCEE FATIMA AZZAHRA","الثانوية التأهيلية فاطمة الزهراء","01","06","142","1420181","1","","83 BD VICTOR HUGO   EL MECHOUAR","زاوية شارع فيكتور هيغو والامام القسطلاني","20500","Casablanca","الدار البيضاء","022303911","","maoujoud.abderrahim@taalim.ma","404","",false,false,0,true,false,false,true,false,false,false,false,2,"B234569",182247,"maoujoud abderrahim","موجود عبد الرحيم",false,false,false,false,false,true,false,true,false,false,false,false,false,false,false,false,false,true,true,true,true,true,true,false,true,true,false,true,false,true,"01","1964-10-01","1966-10-01",null,"",0,0,0,true,false,false,false,1,1,1,true,false,false,false,false,false,10000,1206.01,86.2,0,false,0,null,null,false,0,false,0,null,null,false,null,"",false]
["18235V","82000A01","LA DIRECTION PROVINCIALE AL FIDA MERS SULTAN","المديرية الإقليمية الفداء مرس السلطان","01","06","142","1420113","1","","24 RUE DE ROME","24 زنقة روما","20550","AL FIDA MERS SULTAN","الفداء مرس السلطان","0522283825","0522283825","DELEG.ALFIDA@YAHOO.FR","800","01537v",false,false,1,true,false,false,false,false,false,false,false,0," jc155479",1116293," SAAYDI ABDELALI","عبد العالي اسعيدي",false,false,false,false,false,false,false,false,false,false,false,false,false,false,false,false,false,false,false,false,false,false,false,false,false,false,false,false,false,false,"01","1986-02-01","1988-04-01",null,"",0,0,0,true,false,false,false,1,1,1,true,false,false,false,false,false,0,0,0,0,false,0,null,null,false,0,false,0,null,null,true,null,"",false]
["18588D","82000S17","COLLEGE PRINCE MOULAY RACHID","الثانوية الإعدادية الأمير مولاي رشيد","01","06","142","1420111","1","","EL AMAL 2 PROLONGEMENT BD EL FIDA","شارع الفداء الممتد","20550","al fida derb sultan","الفداء مرس السلطان","0522815102","-  -  -","lcpmyrachid@gmail.com","300","",false,false,0,true,false,false,false,false,false,true,false,2,"B576660",363617,"ABDELILAH  LFATH","عبدالإله الفتح",false,false,false,true,false,false,false,false,false,false,false,false,false,false,false,false,true,true,true,true,true,true,true,false,false,false,true,true,false,false,"01","1997-04-07","1997-04-07",null,"",0,0,0,true,false,false,false,1,1,2,true,false,false,false,false,false,12683,10100,750,0,false,0,null,null,false,0,false,0,null,null,false,null,"",false]
["25958P","","Anx provinciale des Métiers de lEducation et de la Formation"," الفرع الإقليمي للمركز الجهوي لمهن التربية والتكوين","","06","142","1420113","1","","avenue 2 mars ","شارع 2 مارس ","","casablanca","البيضاء","","","crmeffida@yagoo.fr","519","18374w",false,false,0,false,false,false,false,false,false,false,false,0," ",0," "," ",false,false,false,false,false,false,false,false,false,false,true,false,false,false,false,false,false,false,false,false,false,false,false,false,false,false,false,false,false,false,"01","2012-11-09","2012-11-09",null,"",0,0,0,false,false,false,false,null,null,null,false,false,false,false,false,false,null,null,null,null,false,null,null,null,false,null,false,null,null,null,false,null,"",false]

{"sheet":"ACCUEIL","index":1,"n_rows":107,"n_cols":10,"rows_kept":107,"cut":false,"hidden":false,"merged":[[11,4,11,6],[11,2,11,3],[3,4,3,6],[3,2,3,3],[5,4,5,6],[5,2,5,3],[8,4,8,6],[8,2,8,3]]}
[]
[]
[]
[null,null,"السنة الدراسية",null,"2017-2016"]
[]
[null,null,"إسم المؤسسة ",null,"مؤسسة النصر"]
[]
[]
[null,null,"رمزها",null,{"$f":"IF(E6=\"\",\"\",VLOOKUP(E6,$G$99:$I$107,2,0))","v":"50706P"}]
[]
[]
[null,null,"المقاطعة",null,{"$f":"IF(E6=\"\",\"\",VLOOKUP(E9,$H$99:$I$107,2,0))","v":"مقاطعة الفداء"}]
[]
[]
[]
[]
[]
[]
[]
[]
[]
[]
[]
[]
[]
[]
[]
[]
[]
[]
[]
[]
[]
[]
[]
[]
[]
[]
[]
[]
[]
[]
[]
[]
[]
[]
[]
[]
[]
[]
[]
[]
[]
[]
[]
[]
[]
[]
[]
[]
[]
[]
[]
[]
[]
[]
[]
[]
[]
[]
[]
[]
[]
[]
[]
[]
[]
[]
[]
[]
[]
[]
[]
[]
[]
[]
[]
[]
[]
[]
[]
[]
[]
[]
[]
[]
[]
[]
[null,null,null,null,null,null,"مؤسسة النصر","50706P","مقاطعة الفداء",true]
[null,null,null,null,null,null,"ثانوية الفرح","50708S","مقاطعة الفداء",true]
[null,null,null,null,null,null,"ثانوية أنوال","50709T","مقاطعة الفداء",true]
[null,null,null,null,null,null," مؤسسة لكريط","52656J","مقاطعة الفداء",true]
[null,null,null,null,null,null,"معهد الرشاد العلمي ","50720E","مقاطعة مرس السلطان",true]
[null,null,null,null,null,null,"معهد حاتم","50725K","مقاطعة مرس السلطان",true]
[null,null,null,null,null,null,"ثانوية مجموعة مدارس الإقامة","50735W","مقاطعة مرس السلطان",true]
[null,null,null,null,null,null,"إيرابل - معهد مولاي إدريس الأزهر","50739A","مشور الدار البيضاء",true]
[null,null,null,null,null,null,"مدرسة عمر الإدريسي - ملحقة","50743E","مشور الدار البيضاء",true]

{"sheet":"مسك 1","index":2,"n_rows":13,"n_cols":35,"rows_kept":13,"cut":false,"hidden":false,"merged":[[3,23,3,26],[3,27,3,30],[3,31,3,34],[3,3,3,6],[3,7,3,10],[3,11,3,14],[3,15,3,18],[4,31,4,32],[4,33,4,34],[4,3,4,4],[4,5,4,6],[4,7,4,8],[4,9,4,10],[4,11,4,12],[4,13,4,14],[4,15,4,16],[4,17,4,18],[4,27,4,28],[4,29,4,30],[4,19,4,20],[4,21,4,22],[4,23,4,24],[4,25,4,26],[1,1,1,3],[1,4,1,9],[1,11,1,15],[1,16,1,21],[3,0,5,0],[3,1,3,2],[4,2,5,2],[4,1,5,1],[3,19,3,22]]}
[]
[null,"المؤسسة :",null,null,{"$f":"ACCUEIL!E6","v":"مؤسسة النصر"},null,null,null,null,null,null,"الرمز الإحصائي:",null,null,null,null,{"$f":"ACCUEIL!E9","v":"50706P"}]
[]
["المستوى","المسجون الجدد بالأولى إعدادي الوافدون من الوسط القروي",null,"أقل من 12 سنة",null,null,null,"12 سنة",null,null,null,"13 سنة",null,null,null,"14 سنة",null,null,null,"15 سنة",null,null,null,"16 سنة",null,null,null,"17 سنة",null,null,null,"17 سنة فاأكثر"]
[null,"ذ","إ","جدد",null,"مكررون",null,"جدد",null,"مكررون",null,"جدد",null,"مكررون",null,"جدد",null,"مكررون",null,"جدد",null,"مكررون",null,"جدد",null,"مكررون",null,"جدد",null,"مكررون",null,"جدد",null,"مكررون"]
[null,null,null,"ذ","إ","ذ","إ","ذ","إ","ذ","إ","ذ","إ","ذ","إ","ذ","إ","ذ","إ","ذ","إ","ذ","إ","ذ","إ","ذ","إ","ذ","إ","ذ","إ","ذ","إ","ذ","إ"]
["code","elvcg","elvcf","nvg11","nvf11","edg11","rdf11","nvg12","nvf12","edg12","rdf12","nvg13","nvf13","edg13","rdf13","nvg14","nvf14","edg14","rdf14","nvg15","nvf15","edg15","rdf15","nvg16","nvf16","edg16","rdf16","nvg17","nvf17","edg17","rdf17","nvg18","nvf18","edg18","rdf18"]
["السنة الأولى ث. إعدادي"]
["السنة الأولى ث. إعدادي كهرباء البناء"]
["السنة الأولى ث. إعدادي نجارة الخشب و الألمنيوم"]
["السنة الثانية ث. إعدادي"]
["السنة الثالثة ث. إعدادي"]
["المجموع العام",{"$f":"SUM(B8:B12)","v":0},{"$f":"SUM(C8:C12)","v":0},0,0,0,0,0,0,0,0,0,0,0,0,0,0,0,0,0,0,0,0,0,0,0,0,0,0,0,0,0,0,0,0]

{"sheet":"مسك 2","index":3,"n_rows":10,"n_cols":33,"rows_kept":10,"cut":false,"hidden":false,"merged":[[0,1,2,1],[0,0,2,0],[1,12,1,14],[1,30,1,32],[1,21,1,23],[1,24,1,26],[1,27,1,29],[1,18,1,20],[1,9,1,11],[1,6,1,8],[0,6,0,32],[1,15,1,17],[0,2,0,5],[1,2,1,3],[1,4,1,5]]}
["المستوى","عدد الأقسام","التفويج",null,null,null,"للغات والمواد الاختيارية"]
[null,null,"علوم الحياة و الأرض",null,"فزياء وكيمياء",null,"Anglais\nانجليزية",null,null,"Espagnol  \n  اسبانية",null,null,"Allemand   \n المانية",null,null,"Italien   \n   ايطالية",null,null,"Informatique   \n   إعلاميات",null,null,"Technique industrielle  \n تقني صناعي",null,null,"Education Familliale  \n تربية أسرية",null,null,"Education Plastiques  \n  تربية فنية",null,null,"Education Musicale   \n   تربية موسيقية"]
[null,null,"عدد الأفواج","عدد التلاميذ","عدد الأفواج","عدد التلاميذ","أفسام","ذ","إ","أفسام","ذ","إ","أفسام","ذ","إ","أفسام","ذ","إ","أفسام","ذ","إ","أفسام","ذ","إ","أفسام","ذ","إ","أفسام","ذ","إ","أفسام","ذ","إ"]
["code","class","grsvt","elgsvt","grph","elgpht","clan","ang","anf","cles","esg","esf","clall","allg","allf","clit","itg","itf","clinf","infg","inff","cltec","tecg","tecf","cledf","edfg","edff","cledp","edpg","edpf","cledm","edmg","edmf"]
["السنة الأولى ث. إعدادي"]
["السنة الأولى ث. إعدادي كهرباء البناء"]
["السنة الأولى ث. إعدادي نجارة الخشب و الألمنيوم"]
["السنة الثانية ث. إعدادي"]
["السنة الثالثة ث. إعدادي"]
["المجموع العام",{"$f":"SUM(B5:B9)","v":0},{"$f":"SUM(C5:C9)","v":0},{"$f":"SUM(D5:D9)","v":0},{"$f":"SUM(E5:E9)","v":0},{"$f":"SUM(F5:F9)","v":0},{"$f":"SUM(G5:G9)","v":0},0,0,0,0,0,0,0,0,0,0,0,0,0,0,0,0,0,0,0,0,0,0,0,0,0,0]

{"sheet":"مسك 3","index":4,"n_rows":12,"n_cols":25,"rows_kept":12,"cut":false,"hidden":false,"merged":[[2,23,3,24],[0,0,4,0],[2,15,3,16],[2,17,3,18],[2,19,2,22],[3,19,3,20],[3,21,3,22],[0,1,1,10],[0,11,1,24],[2,1,3,2],[2,11,3,12],[2,13,3,14],[2,3,3,4],[2,5,3,6],[2,7,3,8],[2,9,3,10]]}
["المستوى","التأخر المدرسي",null,null,null,null,null,null,null,null,null," حركــية التلاميذ   "]
[]
[null,"تلاميذ كرروا \nسنة واحدة",null,"تلاميذ كرروا سنين",null,"تلاميذ كرروا ثلاث سنوات",null,"تلاميذ كرروا أربع سنوات",null,"تلاميذ كرروا خمس سنوات وأكثر",null,"الوافدون من التعليم العمومي",null,"الوافدون من التعليم الخصوصي",null,"الوافدون من الخارج",null,"المغادرون",null,"غير الملتحقين",null,null,null,"المدمجون"]
[null,null,null,null,null,null,null,null,null,null,null,null,null,null,null,null,null,null,null,"جدد",null,"مكررون"]
[null,"ذ","إ","ذ","إ","ذ","إ","ذ","إ","ذ","إ","ذ","إ","ذ","إ","ذ","إ","ذ","إ","ذ","إ","ذ","إ","ذ","إ"]
["code","dbg1","dbf1","dbg2","dbf2","dbg3","dbf3","dbg4","dbf4","dbg5","dbf5","arvgpb","arvfpb","arvgpv","arvfpv","arvget","arvfet","depg","depf","nsnvg","nsnvf","nsdbg","nsdbf","intg","intf"]
["السنة الأولى ث. إعدادي"]
["السنة الأولى ث. إعدادي كهرباء البناء"]
["السنة الأولى ث. إعدادي نجارة الخشب و الألمنيوم"]
["السنة الثانية ث. إعدادي"]
["السنة الثالثة ث. إعدادي"]
["المجموع العام",{"$f":"SUM(B7:B11)","v":0},{"$f":"SUM(C7:C11)","v":0},0,0,0,0,0,0,0,0,0,0,0,0,0,0,0,0,0,0,0,0,0,0]

{"sheet":"مسك 4","index":5,"n_rows":32,"n_cols":30,"rows_kept":32,"cut":false,"hidden":true,"merged":[[1,1,3,1],[1,2,1,5],[2,2,2,3],[2,4,2,5],[2,12,2,13],[1,6,1,9],[2,6,2,7],[2,8,2,9],[1,10,1,13],[2,10,2,11],[1,14,1,17],[2,14,2,15],[2,16,2,17],[1,18,1,21],[2,18,2,19],[2,20,2,21],[1,22,1,25],[2,22,2,23],[2,24,2,25],[1,26,1,29],[2,26,2,27],[2,28,2,29]]}
[null,1,2,3,4,5,6,7,8,9,10,11,12,13,14,15,16,17,18,19,20,21,22,23,24,25,26,27,28,29]
[null,"المستوى","الإطعام",null,null,null,"الداخليون",null,null,null,"الممنوحون",null,null,null,"الممنوحون الجدد",null,null,null,"الممنوحون الجدد الوافدون\nمن الوسط القروي ",null,null,null,"نصف الممنوحين",null,null,null,"المؤدون"]
[null,null,"مجموع المستفيدين",null,"منهم المستفيدين المنتمون\n إلى  المؤسسات أخرى ",null,"مجموع المستفيدين",null,"منهم المستفيدين المنتمون\n إلى  المؤسسات أخرى ",null,"مجموع المستفيدين",null,"منهم المستفيدين المنتمون\n إلى  المؤسسات أخرى ",null,"مجموع المستفيدين",null,"منهم المستفيدين المنتمون\n إلى  المؤسسات أخرى ",null,"مجموع المستفيدين",null,"منهم المستفيدين المنتمون\n إلى  المؤسسات أخرى ",null,"مجموع المستفيدين",null,"منهم المستفيدين المنتمون\n إلى  المؤسسات أخرى ",null,"مجموع المستفيدين",null,"منهم المستفيدين المنتمون\n إلى  المؤسسات أخرى "]
[null,null,"ذكور","إناث","ذكور","إناث","ذكور","إناث","ذكور","إناث","ذكور","إناث","ذكور","إناث","ذكور","إناث","ذكور","إناث","ذكور","إناث","ذكور","إناث","ذكور","إناث","ذكور","إناث","ذكور","إناث","ذكور","إناث"]
[null,"code","grsvt","elgsvt","grph","elgpht","grsvt","elgsvt","grph","elgpht","grsvt","elgsvt","grph","elgpht","grsvt","elgsvt","grph","elgpht","grsvt","elgsvt","grph","elgpht","grsvt","elgsvt","grph","elgpht","grsvt","elgsvt","grph","elgpht"]
[null,"السنة الأولى ث. إعدادي"]
[null,"السنة الثانية ث. إعدادي"]
[null,"السنة الثالثة ث. إعدادي"]
[null,"ج م الأدبي"]
[null,"ج م العلمي"]
[null,"ج م التكنولوجي"]
[null,"ج م أصيل"]
[null,"س 1 الآداب و العلوم الإنسانية"]
[null,"س 1 العلوم التجريبية"]
[null,"س 1 العلوم الرياضية"]
[null,"س 1 العلوم الإقتصادية و التدبير"]
[null,"س 1 العلوم و التكنولوجيات الكهربائية"]
[null,"س 1 العلوم و التكنولوجيات الميكانيكية"]
[null,"س 1 اللغة العربية"]
[null,"س 2 الآداب "]
[null,"س 2 العلوم الإنسانية"]
[null,"س 2 علوم الحياة والأرض"]
[null,"س 2 العلوم الفيزيائية"]
[null,"مجموع س2 علوم تجريبية"]
[null,"س 2علوم التدبير المحاسباتي"]
[null,"س 2 العلوم الإقتصادية"]
[null,"س 2علوم رياضية ا"]
[null,"س 2 علوم رياضية ب"]
[null,"س 2 العلوم و التكنولوجيات الكهربائية"]
[null,"س 2 العلوم و التكنولوجيات الميكانيكية"]
[null,"س 2 اللغة العربية"]
[null,"المجموع العام",{"$f":"SUM(C6:C31)","v":0},{"$f":"SUM(D6:D31)","v":0},0,0,0,0,0,0,0,0,0,0,0,0,0,0,0,0,0,0,0,0,0,0,0,0,0,0]

{"sheet":"غلاف","index":6,"n_rows":113,"n_cols":34,"rows_kept":113,"cut":false,"hidden":false,"merged":[[46,39,46,40],[41,2,41,15],[42,2,42,15],[40,5,40,11],[42,24,42,38],[42,39,42,40],[43,39,43,40],[40,24,40,38],[40,39,40,40],[41,24,41,38],[45,24,45,38],[44,39,44,40],[43,24,43,38],[45,39,45,40],[44,24,44,38],[41,39,41,40],[40,2,40,4],[40,12,40,14],[38,24,38,40],[39,24,39,38],[39,39,39,40],[32,5,32,8],[32,9,32,15],[32,27,32,30],[32,31,32,37],[34,5,36,9],[34,27,34,30],[34,31,34,37],[34,11,34,23],[28,5,28,37],[29,5,30,7],[29,8,29,27],[29,28,30,30],[29,31,29,37],[24,5,24,18],[24,19,24,21],[24,24,24,37],[26,5,26,18],[26,19,26,21],[26,24,26,37],[20,5,20,18],[20,19,20,21],[20,24,20,37],[22,5,22,18],[22,19,22,21],[22,24,22,37],[46,24,46,38],[47,24,47,38],[47,39,47,40],[0,12,0,25],[1,12,1,25],[1,29,1,37],[7,8,7,16],[7,17,7,23],[7,24,7,32],[10,0,10,20],[10,23,10,42],[13,2,13,40],[15,3,15,40],[18,5,18,18],[18,19,18,21],[18,24,18,37]]}
[]
[]
[]
[]
[]
[]
[]
[null,null,null,null,null,null,null,null,"Année scolaire :",null,null,null,null,null,null,null,null,{"$f":"ACCUEIL!E4","v":"2017-2016"},null,null,null,null,null,null,"السنة الدراسية :"]
[]
[]
[]
[]
[]
[null,null,"IDENTIFICATION ET LOCALISATION DE L'ÉTABLISSEMENT"]
[]
[null,null,null,"تعــريـف وموقع المـؤسـســــــــة"]
[]
[]
[null,null,null,null,null,"Nom de l'établissement     اسم المؤسسة",null,null,null,null,null,null,null,null,null,null,null,null,null,{"$f":"ACCUEIL!E9","v":"50706P"},null,null,null,null,{"$f":"ACCUEIL!E6","v":"مؤسسة النصر"}]
[]
[null,null,null,null,null,"Nature de l'établissement  طبيعة المؤسسة",null,null,null,null,null,null,null,null,null,null,null,null,null,300,null,null,null,null,"مؤسسة ثانوية إعدادية "]
[]
[null,null,null,null,null,"Région                                                             الجهة",null,null,null,null,null,null,null,null,null,null,null,null,null,"06",null,null,null,null,"الدار البيضاء سطات "]
[]
[null,null,null,null,null,"Province                                                          الإقليم ",null,null,null,null,null,null,null,null,null,null,null,null,null,142,null,null,null,null,"عمالة مقاطعات الفداء مرس السلطان"]
[]
[null,null,null,null,null,"Commune                                   الجماعة /المقاطعة",null,null,null,null,null,null,null,null,null,null,null,null,null,{"$f":"IF(Y27=\"\",\"\",VLOOKUP(Y27,$AG$111:$AH$113,2,0))","v":1420111},null,null,null,null,{"$f":"ACCUEIL!E12","v":"مقاطعة الفداء"}]
[]
[null,null,null,null,null,"Coordonnées de l'établissement    عنوان المؤسسة"]
[null,null,null,null,null,"Adresse\nالعنوان",null,null,{"$f":"VLOOKUP(T19,Feuil1!$A$3:$R$78,12,0)","v":"شارع الحزام الكبير، زاوية زنقة 17، حي عمر بن الخطاب - الإدريسية"},null,null,null,null,null,null,null,null,null,null,null,null,null,null,null,null,null,null,null,"  Ville\nالمدينة",null,null,"الدار البيضاء"]
[]
[]
[null,null,null,null,null,"Code postal\nالرمز البريدي",null,null,null,{"$f":"VLOOKUP(T19,Feuil1!$A$3:$R$78,13,0)","v":20550},null,null,null,null,null,null,null,null,null,null,null,null,null,null,null,null,null,"Téléphone :\nالهاتف",null,null,null,{"$f":"VLOOKUP(T19,Feuil1!$A$3:$R$78,16,0)","v":"0522803582"}]
[]
[null,null,null,null,null,"E.Mail\nالعنوان الإلكتروني",null,null,null,null,null,{"$f":"VLOOKUP(T19,Feuil1!$A$3:$R$78,18,0)","v":"ets.ennasr1@menara.ma"},null,null,null,null,null,null,null,null,null,null,null,null,null,null,null,"Fax:\nالفاكس",null,null,null,{"$f":"VLOOKUP(T19,Feuil1!$A$3:$R$78,17,0)","v":"___-__-__-__"}]
[]
[]
[]
[null,null,null,null,null,null,null,null,null,null,null,null,null,null,null,null,null,null,null,null,null,null,null,null,"وثائق الملف :"]
[null,null,null,null,null,null,null,null,null,null,null,null,null,null,null,null,null,null,null,null,null,null,null,null,"التمدرس :  1 - 2 - 3  -  المجموع "]
[null,null,"Date :",null,null,{"$f":"TODAY()","v":"2016-11-29"},null,null,null,null,null,null,"التاريخ :",null,null,null,null,null,null,null,null,null,null,null,"مدرسون - حجرات "]
[null,null,"Signature du responsable de l'établissement",null,null,null,null,null,null,null,null,null,null,null,null,null,null,null,null,null,null,null,null,null,"فضاءات الاستقبال "]
[null,null,"توقيع السيد (ة) المسؤول (ة) عن المؤسسة",null,null,null,null,null,null,null,null,null,null,null,null,null,null,null,null,null,null,null,null,null,"الدعم المدرسي "]
[null,null,null,null,null,null,null,null,null,null,null,null,null,null,null,null,null,null,null,null,null,null,null,null,"الداخليات"]
[null,null,null,null,null,null,null,null,null,null,null,null,null,null,null,null,null,null,null,null,null,null,null,null,"بطاقة المؤسسة"]
[null,null,null,null,null,null,null,null,null,null,null,null,null,null,null,null,null,null,null,null,null,null,null,null,"لائحة التلاميذ الأجانب "]
[null,null,null,null,null,null,null,null,null,null,null,null,null,null,null,null,null,null,null,null,null,null,null,null,"جرد الأثاث التعليمي"]
[null,null,null,null,null,null,null,null,null,null,null,null,null,null,null,null,null,null,null,null,null,null,null,null,"الموارد البشرية "]
[]
[]
[]
[]
[]
[]
[]
[]
[]
[]
[]
[]
[]
[]
[]
[]
[]
[]
[]
[]
[]
[]
[]
[]
[]
[]
[]
[]
[]
[]
[]
[]
[]
[]
[]
[]
[]
[]
[]
[]
[]
[]
[]
[]
[]
[]
[]
[]
[]
[]
[]
[]
[]
[]
[]
[]
[]
[]
[]
[]
[]
[]
[null,null,null,null,null,null,null,null,null,null,null,null,null,null,null,null,null,null,null,null,null,null,null,null,null,null,null,null,null,null,null,null,"مقاطعة الفداء",1420111]
[null,null,null,null,null,null,null,null,null,null,null,null,null,null,null,null,null,null,null,null,null,null,null,null,null,null,null,null,null,null,null,null,"مقاطعة مرس السلطان",1420113]
[null,null,null,null,null,null,null,null,null,null,null,null,null,null,null,null,null,null,null,null,null,null,null,null,null,null,null,null,null,null,null,null,"مشور الدار البيضاء",1420181]

{"sheet":"التمدرس","index":7,"n_rows":148,"n_cols":13,"rows_kept":148,"cut":false,"hidden":false,"merged":[[146,1,147,1],[146,2,147,2],[134,1,135,1],[134,2,135,2],[136,1,137,1],[136,2,137,2],[138,1,139,1],[138,2,139,2],[140,1,141,1],[140,2,141,2],[142,1,143,1],[142,2,143,2],[13,2,13,3],[126,1,127,1],[126,2,127,2],[128,1,129,1],[128,2,129,2],[130,1,131,1],[130,2,131,2],[132,1,133,1],[132,2,133,2],[17,1,19,2],[43,1,43,2],[56,1,56,2],[55,1,55,2],[44,1,44,2],[59,3,60,3],[60,1,60,2],[59,1,59,2],[61,3,62,3],[39,1,39,2],[40,1,40,2],[41,1,41,2],[42,1,42,2],[47,1,47,2],[61,1,61,2],[6,1,6,2],[15,1,15,12],[17,5,17,8],[18,9,19,10],[24,2,24,4],[17,9,17,12],[0,6,0,7],[0,9,0,10],[0,0,0,5],[1,0,1,12],[12,4,12,5],[10,1,10,12],[12,2,12,3],[4,4,4,6],[8,3,8,6],[3,1,3,10],[6,3,6,4],[6,5,6,6],[6,7,6,8],[8,7,8,12],[13,6,13,7],[6,9,6,10],[12,6,12,7],[4,7,4,12],[55,10,56,10],[55,11,56,11],[55,7,55,9],[13,4,13,5],[24,11,25,12],[20,7,20,8],[22,1,22,12],[18,5,19,6],[17,3,17,4],[24,1,25,1],[24,5,24,7],[18,3,19,3],[18,7,19,8],[18,11,19,12],[18,4,19,4],[20,5,20,6],[20,1,20,2],[24,8,24,10],[20,9,20,10],[20,11,20,12],[53,7,53,9],[50,1,50,5],[39,9,46,12],[39,7,42,7],[59,10,60,10],[61,4,62,4],[62,1,62,2],[61,5,62,5],[55,3,56,3],[57,7,57,9],[29,11,29,12],[53,12,54,12],[33,11,33,12],[55,12,56,12],[54,1,54,2],[34,11,34,12],[45,1,45,2],[46,1,46,2],[36,1,36,5],[36,7,36,12],[53,4,54,4],[53,5,54,5],[53,3,54,3],[53,11,54,11],[31,11,31,12],[32,11,32,12],[50,7,50,12],[30,11,30,12],[26,11,26,12],[27,11,27,12],[28,11,28,12],[63,12,64,12],[48,1,48,2],[54,7,54,9],[53,1,53,2],[53,10,54,10],[62,8,62,9],[57,12,58,12],[63,4,64,5],[57,5,58,5],[63,10,64,10],[60,7,60,9],[63,11,64,11],[63,7,63,9],[64,7,64,9],[59,11,60,11],[57,10,58,10],[57,11,58,11],[59,12,60,12],[59,5,60,5],[57,1,57,2],[58,1,58,2],[61,8,61,9],[55,4,56,4],[57,4,58,4],[57,3,58,3],[59,4,60,4],[55,5,56,5],[59,7,59,9],[58,7,58,9],[56,7,56,9]]}
["Questionnaire  Q06    استمــــارة",null,null,null,null,null,"Public عمومي",null,"q","Privé خصوصي",null,"q"]
["Scolarité des élèves de l'enseignement secondaire collégial   تمدرس تلاميذ التعليم الثانوي الإعدادي"]
[]
["I/."," IDENTIFICATION DE L'ÉTABLISSEMENT                  تعريف المؤسسة"]
[null,"1.1  Etablissement    المؤسســــة",null,null,{"$f":"'مسك 1'!Q2","v":"50706P"},null,null,{"$f":"'مسك 1'!E2","v":"مؤسسة النصر"}]
[]
["II/.","Statistiques    إحصائيات"]
[]
[null,"2.1  Formation   التكوين",null,null,null,null,null,"السنة الأولى ث. إعدادي"]
[]
[null,"2.2  Nouveaux inscrits en 1° année collégial issus du milieu rural   المسجون الجدد بالأولى إعدادي الوافدون من الوسط القروي"]
[]
[null,null,"Garçons  ذكور",null,"Filles  إناث",null,"Total   مجموع"]
[null,null,{"$f":"+VLOOKUP(lookupvalue,'مسك 1'!$A$8:$AI$13,2,0)","v":0},null,{"$f":"+VLOOKUP(lookupvalue,'مسك 1'!$A$8:$AI$13,3,0)","v":0},null,{"$f":"SUM(C14:F14)","v":0}]
[]
[null,"2.3  Elèves, classes et dédoublement     التلاميذ والأقسام والتفويج"]
[]
[null,"Nbre de classes\nعدد الأقســـــــام",null,"Elèves\nمجموع التلاميذ",null,"Dédoublement SVT \n تفــــــويج  علوم الحياة و الأرض",null,null,null,"Dédoublement Physique chimie \nتفــــــويج فزياء وكيمياء"]
[null,null,null,"Total\nمجموع ","Filles\nإناث","Nb groupe\nعدد الأفواج",null," Nb élève\nعدد التلاميذ",null,"Nb groupe\nعدد الأفواج",null," Nb élève\nعدد التلاميذ"]
[]
[null,{"$f":"+VLOOKUP(lookupvalue,'مسك 2'!$A$5:$AG$10,2,0)","v":0},{"$f":"INDEX(elevng5,MATCH(lookupvalue,code,0))","v":2},{"$f":"K35","v":0},{"$f":"J35","v":0},{"$f":"+VLOOKUP(lookupvalue,'مسك 2'!$A$5:$AG$10,3,0)","v":0},{"$f":"INDEX(elevng5,MATCH(lookupvalue,code,0))","v":2},{"$f":"+VLOOKUP(lookupvalue,'مسك 2'!$A$5:$AG$10,4,0)","v":0},{"$f":"INDEX(elevng5,MATCH(lookupvalue,code,0))","v":2},{"$f":"+VLOOKUP(lookupvalue,'مسك 2'!$A$5:$AG$10,5,0)","v":0},{"$f":"INDEX(elevng5,MATCH(lookupvalue,code,0))","v":2},{"$f":"+VLOOKUP(lookupvalue,'مسك 2'!$A$5:$AG$10,6,0)","v":0},{"$f":"INDEX(elevng5,MATCH(lookupvalue,code,0))","v":2}]
[]
[null,"2.4  Répartition des élèves par état de scolarité, âge et sexe          توزيع التلاميذ حسب حالة التمدرس والجنس والســن"]
[]
[null,"Age","Nouveaux    الجدد",null,null,"Redoublants    المكررون",null,null,"Ensemble    المجموع",null,null,"السن"]
[null,null,"Garçons\nذكــــور","Filles\nإناث","Total\nمجموع","Garçons\nذكــــور","Filles\nإناث","Total\nمجموع","Garçons\nذكــــور","Filles\nإناث","Total\nمجموع"]
[null,"moins de 12 ans",{"$f":"+VLOOKUP(lookupvalue,'مسك 1'!$A$8:$AI$13,B102,0)","v":0},{"$f":"+VLOOKUP(lookupvalue,'مسك 1'!$A$8:$AI$13,C102,0)","v":0},{"$f":"SUM(C27:D27)","v":0},{"$f":"+VLOOKUP(lookupvalue,'مسك 1'!$A$8:$AI$13,E102,0)","v":0},{"$f":"+VLOOKUP(lookupvalue,'مسك 1'!$A$8:$AI$13,F102,0)","v":0},{"$f":"SUM(F27:G27)","v":0},{"$f":"C27+F27","v":0},{"$f":"D27+G27","v":0},{"$f":"I27+J27","v":0},"أقل من 12 سنة"]
[null,"12 ans",{"$f":"+VLOOKUP(lookupvalue,'مسك 1'!$A$8:$AI$13,B103,0)","v":0},{"$f":"+VLOOKUP(lookupvalue,'مسك 1'!$A$8:$AI$13,C103,0)","v":0},{"$f":"SUM(C28:D28)","v":0},{"$f":"+VLOOKUP(lookupvalue,'مسك 1'!$A$8:$AI$13,E103,0)","v":0},{"$f":"+VLOOKUP(lookupvalue,'مسك 1'!$A$8:$AI$13,F103,0)","v":0},{"$f":"SUM(F28:G28)","v":0},{"$f":"C28+F28","v":0},{"$f":"D28+G28","v":0},{"$f":"I28+J28","v":0},"12 سنة"]
[null,"13 ans",{"$f":"+VLOOKUP(lookupvalue,'مسك 1'!$A$8:$AI$13,B104,0)","v":0},{"$f":"+VLOOKUP(lookupvalue,'مسك 1'!$A$8:$AI$13,C104,0)","v":0},0,{"$f":"+VLOOKUP(lookupvalue,'مسك 1'!$A$8:$AI$13,E104,0)","v":0},{"$f":"+VLOOKUP(lookupvalue,'مسك 1'!$A$8:$AI$13,F104,0)","v":0},0,0,0,0,"13 سنة"]
[null,"14 ans",{"$f":"+VLOOKUP(lookupvalue,'مسك 1'!$A$8:$AI$13,B105,0)","v":0},{"$f":"+VLOOKUP(lookupvalue,'مسك 1'!$A$8:$AI$13,C105,0)","v":0},0,{"$f":"+VLOOKUP(lookupvalue,'مسك 1'!$A$8:$AI$13,E105,0)","v":0},{"$f":"+VLOOKUP(lookupvalue,'مسك 1'!$A$8:$AI$13,F105,0)","v":0},0,0,0,0,"14 سنة"]
[null,"15 ans",{"$f":"+VLOOKUP(lookupvalue,'مسك 1'!$A$8:$AI$13,B106,0)","v":0},{"$f":"+VLOOKUP(lookupvalue,'مسك 1'!$A$8:$AI$13,C106,0)","v":0},0,{"$f":"+VLOOKUP(lookupvalue,'مسك 1'!$A$8:$AI$13,E106,0)","v":0},{"$f":"+VLOOKUP(lookupvalue,'مسك 1'!$A$8:$AI$13,F106,0)","v":0},0,0,0,0,"15 سنة"]
[null,"16 ans",{"$f":"+VLOOKUP(lookupvalue,'مسك 1'!$A$8:$AI$13,B107,0)","v":0},{"$f":"+VLOOKUP(lookupvalue,'مسك 1'!$A$8:$AI$13,C107,0)","v":0},0,{"$f":"+VLOOKUP(lookupvalue,'مسك 1'!$A$8:$AI$13,E107,0)","v":0},{"$f":"+VLOOKUP(lookupvalue,'مسك 1'!$A$8:$AI$13,F107,0)","v":0},0,0,0,0,"16 سنة"]
[null,"17 ans",{"$f":"+VLOOKUP(lookupvalue,'مسك 1'!$A$8:$AI$13,B108,0)","v":0},{"$f":"+VLOOKUP(lookupvalue,'مسك 1'!$A$8:$AI$13,C108,0)","v":0},0,{"$f":"+VLOOKUP(lookupvalue,'مسك 1'!$A$8:$AI$13,E108,0)","v":0},{"$f":"+VLOOKUP(lookupvalue,'مسك 1'!$A$8:$AI$13,F108,0)","v":0},0,0,0,0,"17 سنة"]
[null,"plus de 17 ans",{"$f":"+VLOOKUP(lookupvalue,'مسك 1'!$A$8:$AI$13,B109,0)","v":0},{"$f":"+VLOOKUP(lookupvalue,'مسك 1'!$A$8:$AI$13,C109,0)","v":0},0,{"$f":"+VLOOKUP(lookupvalue,'مسك 1'!$A$8:$AI$13,E109,0)","v":0},{"$f":"+VLOOKUP(lookupvalue,'مسك 1'!$A$8:$AI$13,F109,0)","v":0},0,0,0,0,"أكثر من 17 سنة"]
[null,"Total",{"$f":"SUM(C27:C34)","v":0},{"$f":"SUM(D27:D34)","v":0},0,0,0,0,0,0,0,"المجموع"]
[]
[null,"2.5  Langues et matières optionnelles  اللغات والمواد الاختيارية"]
[]
[null,null,null,"Classes\nالأقسام","Garçons\nذكور","Filles\nإناث","Total\nمجموع"]
[null,"Anglais                                     انجليزية",null,{"$f":"+VLOOKUP(lookupvalue,'مسك 2'!$A$5:$AG$10,B113,0)","v":0},{"$f":"+VLOOKUP(lookupvalue,'مسك 2'!$A$5:$AG$10,C113,0)","v":0},{"$f":"+VLOOKUP(lookupvalue,'مسك 2'!$A$5:$AG$10,D113,0)","v":0},{"$f":"E40+F40","v":0},{"$f":"IF(AND(SUM(D40:D43)=B21,SUM(G40:G43)=K35,SUM(F40:F43)=J35),\"OK\",\"ERREUR\")","v":"OK"},null,"توقيع و خاتم السيد(ة) المدير(ة)"]
[null,"Espagnol                                   اسبانية",null,{"$f":"+VLOOKUP(lookupvalue,'مسك 2'!$A$5:$AG$10,B114,0)","v":0},{"$f":"+VLOOKUP(lookupvalue,'مسك 2'!$A$5:$AG$10,C114,0)","v":0},{"$f":"+VLOOKUP(lookupvalue,'مسك 2'!$A$5:$AG$10,D114,0)","v":0},{"$f":"E41+F41","v":0}]
[null,"Allemand                                    المانية",null,{"$f":"+VLOOKUP(lookupvalue,'مسك 2'!$A$5:$AG$10,B115,0)","v":0},{"$f":"+VLOOKUP(lookupvalue,'مسك 2'!$A$5:$AG$10,C115,0)","v":0},{"$f":"+VLOOKUP(lookupvalue,'مسك 2'!$A$5:$AG$10,D115,0)","v":0},0]
[null,"Italien                                        ايطالية",null,{"$f":"+VLOOKUP(lookupvalue,'مسك 2'!$A$5:$AG$10,B116,0)","v":0},{"$f":"+VLOOKUP(lookupvalue,'مسك 2'!$A$5:$AG$10,C116,0)","v":0},{"$f":"+VLOOKUP(lookupvalue,'مسك 2'!$A$5:$AG$10,D116,0)","v":0},0]
[null,"Informatique                           إعلاميات",null,{"$f":"+VLOOKUP(lookupvalue,'مسك 2'!$A$5:$AG$10,B117,0)","v":0},{"$f":"+VLOOKUP(lookupvalue,'مسك 2'!$A$5:$AG$10,C117,0)","v":0},{"$f":"+VLOOKUP(lookupvalue,'مسك 2'!$A$5:$AG$10,D117,0)","v":0},0]
[null,"Technique agricole               تقني فلاحي"]
[null,"Technique industrielle         تقني صناعي",null,{"$f":"+VLOOKUP(lookupvalue,'مسك 2'!$A$5:$AG$10,B119,0)","v":0},{"$f":"+VLOOKUP(lookupvalue,'مسك 2'!$A$5:$AG$10,C119,0)","v":0},{"$f":"+VLOOKUP(lookupvalue,'مسك 2'!$A$5:$AG$10,D119,0)","v":0},0]
[null,"Education Familliale            تربية أسرية",null,{"$f":"+VLOOKUP(lookupvalue,'مسك 2'!$A$5:$AG$10,B120,0)","v":0},{"$f":"+VLOOKUP(lookupvalue,'مسك 2'!$A$5:$AG$10,C120,0)","v":0},{"$f":"+VLOOKUP(lookupvalue,'مسك 2'!$A$5:$AG$10,D120,0)","v":0},0]
[null,"Education Plastiques            تربية فنية",null,{"$f":"+VLOOKUP(lookupvalue,'مسك 2'!$A$5:$AG$10,B121,0)","v":0},{"$f":"+VLOOKUP(lookupvalue,'مسك 2'!$A$5:$AG$10,C121,0)","v":0},{"$f":"+VLOOKUP(lookupvalue,'مسك 2'!$A$5:$AG$10,D121,0)","v":0},0]
[null,"Education Musicale           تربية موسيقية",null,{"$f":"+VLOOKUP(lookupvalue,'مسك 2'!$A$5:$AG$10,B122,0)","v":0},{"$f":"+VLOOKUP(lookupvalue,'مسك 2'!$A$5:$AG$10,C122,0)","v":0},{"$f":"+VLOOKUP(lookupvalue,'مسك 2'!$A$5:$AG$10,D122,0)","v":0},0]
[]
[null,"2.6  Retard scolaire    التأخـــر المدرسي",null,null,null,null,null,"2.7  Mouvement des élèves      حركــية التلاميذ"]
[]
[null,null,null,"Garçons\nذكور","Filles\nإناث","Total\nمجموع",null,null,null,null,"Garçons\nذكور","Filles\nإناث","Total\nمجموع"]
[null,"Elèves ayant doublé une année",null,{"$f":"+VLOOKUP(lookupvalue,'مسك 3'!$A$7:$Y$12,B127,0)","v":0},{"$f":"+VLOOKUP(lookupvalue,'مسك 3'!$A$7:$Y$12,C127,0)","v":0},{"$f":"D54+E54","v":0},null,"Arrivées du public ",null,null,{"$f":"+VLOOKUP(lookupvalue,'مسك 3'!$A$7:$Y$12,B137,0)","v":0},{"$f":"+VLOOKUP(lookupvalue,'مسك 3'!$A$7:$Y$12,C137,0)","v":0},{"$f":"K54+L54","v":0}]
[null,"تلاميذ كرروا سنة واحدة",null,{"$f":"INDEX(_nvg11,MATCH(lookupvalue,code,0))","v":0},{"$f":"INDEX(_nvg11,MATCH(lookupvalue,code,0))","v":0},null,null,"الوافدون من التعليم العمومي",null,null,{"$f":"INDEX(_nvg11,MATCH(lookupvalue,code,0))","v":0},{"$f":"INDEX(_nvg11,MATCH(lookupvalue,code,0))","v":0}]
[null,"Elèves ayant doublé deux années",null,{"$f":"+VLOOKUP(lookupvalue,'مسك 3'!$A$7:$Y$12,B129,0)","v":0},{"$f":"+VLOOKUP(lookupvalue,'مسك 3'!$A$7:$Y$12,C129,0)","v":0},{"$f":"D56+E56","v":0},null,"Arrivées du privé",null,null,{"$f":"+VLOOKUP(lookupvalue,'مسك 3'!$A$7:$Y$12,B139,0)","v":0},{"$f":"+VLOOKUP(lookupvalue,'مسك 3'!$A$7:$Y$12,C139,0)","v":0},{"$f":"K56+L56","v":0}]
[null,"تلاميذ كرروا سنتين",null,{"$f":"INDEX(_nvg11,MATCH(lookupvalue,code,0))","v":0},{"$f":"INDEX(_nvg11,MATCH(lookupvalue,code,0))","v":0},null,null,"الوافدون من التعليم الخصوصي",null,null,{"$f":"INDEX(_nvg11,MATCH(lookupvalue,code,0))","v":0},{"$f":"INDEX(_nvg11,MATCH(lookupvalue,code,0))","v":0}]
[null,"Elèves ayant doublé trois années",null,{"$f":"+VLOOKUP(lookupvalue,'مسك 3'!$A$7:$Y$12,B131,0)","v":0},{"$f":"+VLOOKUP(lookupvalue,'مسك 3'!$A$7:$Y$12,C131,0)","v":0},{"$f":"D58+E58","v":0},null,"Arrivées de l'étranger",null,null,{"$f":"+VLOOKUP(lookupvalue,'مسك 3'!$A$7:$Y$12,B141,0)","v":0},{"$f":"+VLOOKUP(lookupvalue,'مسك 3'!$A$7:$Y$12,C141,0)","v":0},{"$f":"K58+L58","v":0}]
[null,"تلاميذ كرروا ثلاث سنوات",null,{"$f":"INDEX(_nvg11,MATCH(lookupvalue,code,0))","v":0},{"$f":"INDEX(_nvg11,MATCH(lookupvalue,code,0))","v":0},null,null,"الوافدون من الخارج",null,null,{"$f":"INDEX(_nvg11,MATCH(lookupvalue,code,0))","v":0},{"$f":"INDEX(_nvg11,MATCH(lookupvalue,code,0))","v":0}]
[null,"Elèves ayant doublé quatre années",null,{"$f":"+VLOOKUP(lookupvalue,'مسك 3'!$A$7:$Y$12,B133,0)","v":0},{"$f":"+VLOOKUP(lookupvalue,'مسك 3'!$A$7:$Y$12,C133,0)","v":0},{"$f":"D60+E60","v":0},null,"Départs de l'établissement",null,null,{"$f":"+VLOOKUP(lookupvalue,'مسك 3'!$A$7:$Y$12,B143,0)","v":0},{"$f":"+VLOOKUP(lookupvalue,'مسك 3'!$A$7:$Y$12,C143,0)","v":0},{"$f":"K60+L60","v":0}]
[null,"تلاميذ كرروا أربع سنوات",null,{"$f":"INDEX(_nvg11,MATCH(lookupvalue,code,0))","v":0},{"$f":"INDEX(_nvg11,MATCH(lookupvalue,code,0))","v":0},null,null,"المغادرون",null,null,{"$f":"INDEX(_nvg11,MATCH(lookupvalue,code,0))","v":0},{"$f":"INDEX(_nvg11,MATCH(lookupvalue,code,0))","v":0}]
[null,"Elèves ayant doublé cinq années et +",null,{"$f":"+VLOOKUP(lookupvalue,'مسك 3'!$A$7:$Y$12,B135,0)","v":0},{"$f":"+VLOOKUP(lookupvalue,'مسك 3'!$A$7:$Y$12,C135,0)","v":0},{"$f":"D62+E62","v":0},null,"Non \nréinscrits","Nouveaux        جدد",null,{"$f":"+VLOOKUP(lookupvalue,'مسك 3'!$A$7:$Y$12,B145,0)","v":0},{"$f":"+VLOOKUP(lookupvalue,'مسك 3'!$A$7:$Y$12,C145,0)","v":0},{"$f":"K62+L62","v":0}]
[null,"تلاميذ كرروا خمس سنوات وأكثر",null,{"$f":"INDEX(_nvg11,MATCH(lookupvalue,code,0))","v":0},{"$f":"INDEX(_nvg11,MATCH(lookupvalue,code,0))","v":0},null,null,"غير الملتحقين","Redoublants    مكررون",null,{"$f":"+VLOOKUP(lookupvalue,'مسك 3'!$A$7:$Y$12,B146,0)","v":0},{"$f":"+VLOOKUP(lookupvalue,'مسك 3'!$A$7:$Y$12,C146,0)","v":0},{"$f":"K63+L63","v":0}]
[null,null,null,null,{"$f":"IF(AND(SUM(F54:F63)>=H35,SUM(E54:E63)>=G35),\"OK\",\"Erreur\")","v":"OK"},null,null,"Réintégrés",null,null,{"$f":"+VLOOKUP(lookupvalue,'مسك 3'!$A$7:$Y$12,B147,0)","v":0},{"$f":"+VLOOKUP(lookupvalue,'مسك 3'!$A$7:$Y$12,C147,0)","v":0},{"$f":"K64+L64","v":0}]
[null,null,null,null,null,null,null,"المدمجون",null,null,{"$f":"INDEX(nsdbg,MATCH(lookupvalue,code,0))","v":0},{"$f":"INDEX(nsdbg,MATCH(lookupvalue,code,0))","v":0}]
[]
[]
[]
[]
[]
[]
[null,"السنة الأولى ث. إعدادي"]
[null,"السنة الأولى ث. إعدادي كهرباء البناء"]
[null,"السنة الأولى ث. إعدادي نجارة الخشب و الألمنيوم"]
[null,"السنة الثانية ث. إعدادي"]
[null,"السنة الثالثة ث. إعدادي"]
[null,"المجموع العام"]
[]
[]
[]
[]
[]
[]
[]
[]
[]
[]
[]
[]
[null,null,null,null,null,{"$f":"INDEX(elevng5,MATCH(lookupvalue,code,0))","v":2}]
[]
[]
[]
[]
[]
[]
[]
[]
[]
[]
[]
[null,4,5,null,6,7]
[null,8,9,null,10,11]
[null,12,13,null,14,15]
[null,16,17,null,18,19]
[null,20,21,null,22,23]
[null,24,25,null,26,27]
[null,28,29,null,30,31]
[null,32,33,null,34,35]
[]
[]
[]
[null,7,8,9]
[null,10,11,12]
[null,13,14,15]
[null,16,17,18]
[null,19,20,21]
[]
[null,22,23,24]
[null,25,26,27]
[null,28,29,30]
[null,31,32,33]
[null,34,35,36]
[null,37,38,39]
[]
[]
[null,2,3]
[null,{"$f":"INDEX(_nvg11,MATCH(lookupvalue,code,0))","v":0},{"$f":"INDEX(_nvg11,MATCH(lookupvalue,code,0))","v":0}]
[null,4,5]
[null,{"$f":"INDEX(_nvg11,MATCH(lookupvalue,code,0))","v":0},{"$f":"INDEX(_nvg11,MATCH(lookupvalue,code,0))","v":0}]
[null,6,7]
[null,{"$f":"INDEX(_nvg11,MATCH(lookupvalue,code,0))","v":0},{"$f":"INDEX(_nvg11,MATCH(lookupvalue,code,0))","v":0}]
[null,8,9]
[null,{"$f":"INDEX(_nvg11,MATCH(lookupvalue,code,0))","v":0},{"$f":"INDEX(_nvg11,MATCH(lookupvalue,code,0))","v":0}]
[null,10,11]
[null,{"$f":"INDEX(_nvg11,MATCH(lookupvalue,code,0))","v":0},{"$f":"INDEX(_nvg11,MATCH(lookupvalue,code,0))","v":0}]
[null,12,13]
[null,{"$f":"INDEX(_nvg11,MATCH(lookupvalue,code,0))","v":0},{"$f":"INDEX(_nvg11,MATCH(lookupvalue,code,0))","v":0}]
[null,14,15]
[null,{"$f":"INDEX(_nvg11,MATCH(lookupvalue,code,0))","v":0},{"$f":"INDEX(_nvg11,MATCH(lookupvalue,code,0))","v":0}]
[null,16,17]
[null,{"$f":"INDEX(_nvg11,MATCH(lookupvalue,code,0))","v":0},{"$f":"INDEX(_nvg11,MATCH(lookupvalue,code,0))","v":0}]
[null,18,19]
[null,{"$f":"INDEX(_nvg11,MATCH(lookupvalue,code,0))","v":0},{"$f":"INDEX(_nvg11,MATCH(lookupvalue,code,0))","v":0}]
[null,20,21]
[null,22,23]
[null,24,25]
[null,{"$f":"INDEX(nsdbg,MATCH(lookupvalue,code,0))","v":0},{"$f":"INDEX(nsdbg,MATCH(lookupvalue,code,0))","v":0}]

{"sheet":"مدرسون حجرات","index":8,"n_rows":68,"n_cols":18,"rows_kept":68,"cut":false,"hidden":false,"merged":[[41,2,42,2],[43,1,44,1],[43,2,43,3],[44,2,44,3],[21,14,22,14],[21,15,22,15],[21,16,22,16],[21,17,22,17],[45,0,45,3],[29,1,29,3],[39,2,40,2],[29,13,30,13],[30,1,30,3],[31,1,31,3],[32,0,44,0],[32,1,42,1],[32,2,33,2],[34,2,34,3],[35,2,36,2],[37,2,38,2],[34,14,45,17],[0,0,0,6],[2,0,2,16],[4,1,4,2],[4,7,4,13],[6,8,6,10],[6,13,6,15],[4,4,4,5],[19,16,20,16],[19,17,20,17],[7,8,7,10],[8,8,8,10],[11,4,11,13],[11,14,11,15],[19,14,20,14],[19,15,20,15]]}
["Questionnaire  Q03/ Secondaire collégial    استمارة الثانوي الإعدادي  ",null,null,null,null,null,null,"Public عمومي",null,null,"Privé خصوصي"]
[]
["Espace d'accueil : Bloc pédagogique  فضاءات الاستقبال : المرافق التربوية"]
[]
[null,"Etablissement  المؤسسة",null,null,{"$f":"'مسك 1'!Q2","v":"50706P"},null,null,{"$f":"'مسك 1'!E2","v":"مؤسسة النصر"}]
[]
[null,null,"Niveaux     المستويات ","1ère Année\nالسنة الأولى","2ème année\nالسنة الثانية ","3ème année\nالسنة الثالثة ","Total\nالمجموع",null,"Jour par semaine (4)\nعدد أيام الدراسة في الأسبوع\n",null,null,6,null,"Heures / Enseignant / semaine (7)\nعدد الساعات للأستاذ في الأسبوع",null,null,24]
[null,null,"Nombre de classes  عدد الأقسام   (1)",{"$f":"SUM('مسك 2'!B5:B7)","v":0},{"$f":"'مسك 2'!B8","v":0},{"$f":"+'مسك 2'!B9","v":0},{"$f":"D8+E8+F8","v":0},null,"Horaires par jour  عدد الساعات في اليوم (5)",null,null,8]
[null,null,"Effectifs des élèves عدد التلاميذ (2)",{"$f":"+SUM('مسك 1'!D8:AI10)","v":0},{"$f":"+SUM('مسك 1'!D11:AI11)","v":0},{"$f":"+SUM('مسك 1'!D12:AI12)","v":0},{"$f":"D9+E9+F9","v":0},null,"Horaires par semaine (6)\nعدد الساعات في الأسبوع",null,null,{"$f":"L7*L8","v":48}]
[null,null,"Ratio Elèves/Classe معدل التلاميذ بالقسم (3)",{"$f":"IF(D8=0,\"\",ROUND(D9/D8,0))","v":""},{"$f":"IF(E8=0,\"\",ROUND(E9/E8,0))","v":""},{"$f":"IF(F8=0,\"\",ROUND(F9/F8,0))","v":""},{"$f":"IF(G8=0,\"\",ROUND(G9/G8,0))","v":""}]
[]
[null,null,null,null,"Nombre de cours par type de local",null,null,null,null,null,null,null,null,null,"Besoins en enseignants"]
[null,"Code\nالرمز","Matières enseignées\nالمواد المدرسة","(8)\nNombre global de cours par semaine\nعدد الإجمالي للحصص الأسبوعية","(9)\nSalle d'Enseignement Général\nحجرة التعليم العام\n\n 3001","(10)\nSalle de cours Physique-chimie \nقاعة الفيزياء والكيمياء\n3201","(11)\nSalle de cours SVT \nقاعة علوم الحياة والارض\n\n3203","(13)\nLabo des sciences TP \nمختبر العلوم\n\n\n3301","(14)\nSalle d'informatique/ multimédia \nقاعة الإعلاميات ومتعددة الوسائط \n3105","(17)\nSalle de technologie\nقاعة التكنولوجيا\n\n\n3109","(15)\nSalle des arts plastiques\nقاعة الفنون التشكيلية\n\n3113","(18)\nSalle d'éducation familliale\nقاعة التربية الأسرية\n3117","(19)\nSalle d'éducation musicale\nقاعة التربية الموسيقية\n3119","(20)\nExtérieur","(30)\nRatios cours/ horaire hebdo des enseignants","(31)\nEffectif d'enseignants à prévoir","(32)\nEffectif d'enseignants disponible","(33)\nE CARTS"]
[null,"C01","Langue arabe",null,{"$f":"D14","v":0},null,null,null,null,null,null,null,null,null,{"$f":"ROUND(D14/$Q$7,2)","v":0},{"$f":"ROUNDUP(O14,0)","v":0},null,{"$f":"Q14-P14","v":0}]
[null,"C02","Langue française",null,0,null,null,null,null,null,null,null,null,null,0,{"$f":"ROUNDUP(O15,0)","v":0},null,{"$f":"Q15-P15","v":0}]
[null,"C03","2ème langue étrangère",null,0,null,null,null,null,null,null,null,null,null,0,0,null,0]
[null,"C04","Histoire / géographie",null,0,null,null,null,null,null,null,null,null,null,0,0,null,0]
[null,"C06","Instruction islamique",null,0,null,null,null,null,null,null,null,null,null,0,0,null,0]
[null,"C07","Mathématiques",null,0,null,null,null,null,null,null,null,null,null,0,0,null,0]
[null,"C10","Physique chime (cours)",null,null,{"$f":"D20","v":0},null,null,null,null,null,null,null,null,{"$f":"ROUND((D20+D21)/$Q$7,2)","v":0},0,null,0]
[null,"C11","Physique chimie (TP)",null,null,null,null,{"$f":"D21","v":0},null,null,null,null,null,null,0,0,null,0]
[null,"C12","Sciences de la vie et de la terre (cours)",null,null,null,{"$f":"D22","v":0},null,null,null,null,null,null,null,{"$f":"ROUND((D22+D23)/$Q$7,2)","v":0},0,null,0]
[null,"C13","Sciences de la vie et de la terre (TP)",null,null,null,null,{"$f":"D23","v":0},null,null,null,null,null,null,0,0,null,0]
[null,"C21","Education familliale *",null,null,null,null,null,null,null,null,{"$f":"D24","v":0},null,null,0,{"$f":"ROUNDUP(O24,0)","v":0},null,0]
[null,"C22","Education musicale",null,null,null,null,null,null,null,null,null,{"$f":"D25","v":0},null,0,0,null,0]
[null,"C18","Arts plastiques ",null,null,null,null,null,null,null,{"$f":"D26","v":0},null,null,null,0,0,null,0]
[null,"C23","Technologie ",null,null,null,null,null,null,{"$f":"D27","v":0},null,null,null,null,0,0,null,0]
[null,"C20","Informatique / multimédia*",null,null,null,null,null,{"$f":"D28","v":0},null,null,null,null,null,0,0,null,0]
[null,"C30","Education physique",null,null,null,null,null,null,null,null,null,null,{"$f":"D29","v":0},0,0,null,0]
[null,"Nombre total de cours par type de local (40)",null,null,{"$f":"SUM(E14:E29)","v":0},{"$f":"SUM(F14:F29)","v":0},0,0,0,0,0,0,0,"TOTAL(51)",null,{"$f":"SUM(P14:P29)","v":0},{"$f":"SUM(Q14:Q29)","v":0},0]
[null,"Ratios cours/horaire hebdomadaire (41)",null,null,{"$f":"E30/$L$9","v":0},{"$f":"F30/$L$9","v":0},{"$f":"G30/$L$9","v":0},0,0,0,0,0,0]
[null,"Locaux requis (42)",null,null,{"$f":"ROUNDUP(E31,0)","v":0},{"$f":"ROUNDUP(F31,0)","v":0},{"$f":"ROUNDUP(G31,0)","v":0},0,0,0,0,0,0,{"$f":"SUM(E32:M32)","v":0}]
["Salles de classes "," disponibles","Nombre (43)","Bon Etat",null,null,null,null,null,null,null,null,null,{"$f":"SUM(E33:M33)","v":0}]
[null,null,null,"Défectueux",null,null,null,null,null,null,null,null,null,0]
[null,null,"dont Nouvelles créations (44)",null,null,null,null,null,null,null,null,null,null,0,"\nتوقيع السيد(ة) المدير(ة)"]
[null,null,"dont utilisées pour l'enseignement (45)","Bon Etat",null,null,null,null,null,null,null,null,null,0]
[null,null,null,"Défectueux",null,null,null,null,null,null,null,null,null,0]
[null,null,"dont utilisées pour autre fin (46)","Bon Etat",null,null,null,null,null,null,null,null,null,0]
[null,null,null,"Défectueux",null,null,null,null,null,null,null,null,null,0]
[null,null,"dont prêtés (47)","Bon Etat",null,null,null,null,null,null,null,null,null,0]
[null,null,null,"Défectueux",null,null,null,null,null,null,null,null,null,0]
[null,null,"dont fermés  (48)","Bon Etat",null,null,null,null,null,null,null,null,null,0]
[null,null,null,"Défectueux",null,null,null,null,null,null,null,null,null,0]
[null,"Autres salles ","Empruntés (49)",null,null,null,null,null,null,null,null,null,null,0]
[null,null,"Autre type de locaux   (50)",null,null,null,null,null,null,null,null,null,null,0]
["Total utilisées (52)",null,null,null,{"$f":"E36+E37+E44+E45","v":0},{"$f":"F36+F37+F44+F45","v":0},0,0,0,0,0,0,0,0]
[]
[null,null,null,null,{"$f":"IF(AND(E33=E36+E38+E40+E42,E34=E37+E39+E41+E43),\"OK\",\"ERREUR\")","v":"OK"},{"$f":"IF(AND(F33=F36+F38+F40+F42,F34=F37+F39+F41+F43),\"OK\",\"ERREUR\")","v":"OK"},"OK","OK","OK","OK","OK","OK","OK"]
[]
[]
[]
[null,null,null,"1ere","2eme","3eme","total"]
[null,null,"arabe",4,4,4,{"$f":"SUM(D53:F53)","v":12}]
[null,null,"français",4,4,4,{"$f":"SUM(D54:F54)","v":12}]
[null,null,"2 eme langue",null,null,2,2]
[null,null,"HG",3,3,3,9]
[null,null,"Instruction islamique",2,2,2,6]
[null,null,"maths",5,4,5,14]
[null,null,"pc cours ",2,1,1,4]
[null,null,"pc tp",null,1,1,2]
[null,null,"svt cours ",2,1,1,4]
[null,null,"svt tp",null,1,1,2]
[null,null,"education familiale entiere",2,2,null,4]
[null,null,"ed musicale",2,2,2,6]
[null,null,"Arts plastiques",2,2,2,6]
[null,null,"tech entière",null,2,2,4]
[null,null,"info  entiere",1,1,1,3]
[null,null,"EPS",2,2,2,6]

{"sheet":"فضاءات الاستقبال","index":9,"n_rows":71,"n_cols":13,"rows_kept":71,"cut":false,"hidden":false,"merged":[[69,0,69,2],[53,0,53,2],[56,0,56,12],[58,0,68,0],[58,1,59,1],[60,1,60,2],[61,1,62,1],[63,1,64,1],[65,1,66,1],[67,1,68,1],[37,0,37,2],[40,0,40,12],[42,0,52,0],[42,1,43,1],[44,1,44,2],[45,1,46,1],[47,1,48,1],[49,1,50,1],[51,1,52,1],[25,9,37,12],[21,0,21,2],[24,0,24,12],[26,0,36,0],[26,1,27,1],[28,1,28,2],[29,1,30,1],[31,1,32,1],[33,1,34,1],[35,1,36,1],[8,0,8,12],[10,0,20,0],[10,1,11,1],[12,1,12,2],[13,1,14,1],[15,1,16,1],[17,1,18,1],[19,1,20,1],[6,4,6,5],[6,7,6,11],[0,0,0,5],[2,0,2,12],[4,0,4,12],[6,1,6,2]]}
["Questionnaire  Q03   استمــــارة ",null,null,null,null,null,"Public عمومي",null,null,"Privé خصوصي"]
[]
["Espace d'accueil : Bloc administratif et sanitaire, Hebergement et Restauration, Sportif et Logement     "]
[]
["فضاءات الاستقبال : المرافق الإدارية  و الصحية و الإطعام والإيواء و الملاعب الرياضية والسكنيات"]
[]
[null,"Etablissement  المؤسسة",null,null,{"$f":"ACCUEIL!E9","v":"50706P"},null,null,{"$f":"ACCUEIL!E6","v":"مؤسسة النصر"}]
[]
["BLOC ADMINISTRATIF ET SANITAIRE    المرافق الإدارية  و الصحية"]
[null,null,null,"Bureaux Administratifs\nمكاتب إدارية\n2000","Salle des enseignants\nقاعة الاساتذة\n2005","Entrepot\nمستودع\n\n2007","Salle d'Archives \nقاعة الأرشيف\n2009","Salle de conférence\nقاعة المحاضرات\n2011","Infirmerie\nالمصحة\n\n2013","Salle de prière\nالمسجد\n2015","Salle de permanence\nقاعة المداومة\n2017","Bibliothèque\nمكتبة\n\n2021","Latrines\nالمرافق الصحية\n\n2023"]
[" disponibles","Nombre","Bon Etat"]
[null,null,"Défectueux"]
[null,"dont Nouvelles créations"]
[null,"dont utilisées ","Bon Etat"]
[null,null,"Défectueux"]
[null,"dont utilisées pour autre fin","Bon Etat"]
[null,null,"Défectueux"]
[null,"dont prêtés ","Bon Etat"]
[null,null,"Défectueux"]
[null,"dont fermés ","Bon Etat"]
[null,null,"Défectueux"]
["Empruntés "]
[null,null,null,{"$f":"IF(AND(D11+D12=D14+D15+D16+D17+D18+D19+D20+D21,D12=D15+D17+D19+D21,D11=D14+D16+D18+D20),\"OK\",\"ERREUR\")","v":"OK"},"OK","OK","OK","OK","OK","OK","OK","OK","OK"]
[]
["BLOC RESTAURATION ET HEBERGEMENT    مرافق الإطعام والإيواء"]
[null,null,null,"Refectoir Cantine scolaire\nقاعة الاطعام\n4001","Cuisine Cantine scolaire\nالمطبخ\n4003","Dortoir\nمراقد\n\n\n4101","Pioles\nغرف النوم\n\n\n4103","Foyer\nمأوى\n\n\n4105","Refectoir Inernat\n قاعة الإطعام للداخلية\n4107","\nتوقيع السيد(ة) المدير(ة):"]
[" disponibles","Nombre","Bon Etat"]
[null,null,"Défectueux"]
[null,"dont Nouvelles créations"]
[null,"dont utilisées ","Bon Etat"]
[null,null,"Défectueux"]
[null,"dont utilisées pour autre fin","Bon Etat"]
[null,null,"Défectueux"]
[null,"dont prêtés ","Bon Etat"]
[null,null,"Défectueux"]
[null,"dont fermés ","Bon Etat"]
[null,null,"Défectueux"]
["Empruntés "]
[null,null,null,{"$f":"IF(AND(D27+D28=D30+D31+D32+D33+D34+D35+D36+D37,D28=D31+D33+D35+D37,D27=D30+D32+D34+D36),\"OK\",\"ERREUR\")","v":"OK"},"OK","OK","OK","OK","OK"]
[]
["BLOC SPORTIF    المرافق الرياضية"]
[null,null,null,"Terrain de Foot-ball\nملعب كرة القدم\n\n5003","Terrain de Hand-Ball\nملعب كرة اليد\n\n5005","Terrain de Volly-Ball\n ملعب الكرة الطائرة\n5007","Terrain de Basket-Ball \n ملعب كرة السلة\n\n5009","Piste \nحلبة\n\n\n5015","Salle de gymnastique\nقاعة الجمباز\n\n5017","Vestiaire pour Garçons\n  مستودع للذكور \n\n5019","Vestiaire pour Filles\nمستودع للإناث \n\n5021"]
[" disponibles","Nombre","Bon Etat"]
[null,null,"Défectueux"]
[null,"dont Nouvelles créations"]
[null,"dont utilisées ","Bon Etat"]
[null,null,"Défectueux"]
[null,"dont utilisées pour autre fin","Bon Etat"]
[null,null,"Défectueux"]
[null,"dont prêtés ","Bon Etat"]
[null,null,"Défectueux"]
[null,"dont fermés ","Bon Etat"]
[null,null,"Défectueux"]
["Empruntés "]
[null,null,null,{"$f":"IF(AND(D43+D44=D46+D47+D48+D49+D50+D51+D52+D53,D44=D47+D49+D51+D53,D43=D46+D48+D50+D52),\"OK\",\"ERREUR\")","v":"OK"},"OK","OK","OK","OK","OK","OK","OK"]
[]
["BLOC LOGEMENTS    السكنيات"]
[null,null,null,"Logement pour Directeur\nسكن المدير\n\n\n\n6001","Logement pour Censeur\nسكن الناظر \n\n\n\n\n6005","Logement pour surveillants généraux d'externat\nسكن الحراس العامين للخارجية\n6007","Logement pour surveillants généraux d'internat\nسكن حارس عام الداخلية\n6009","Logement pour Econome / intendant\nسكن المقتصد \\ الممون\n\n6011","Logement pour enseignants\nسكن المدرسين\n\n\n\n6013","Logement pour le concièrge\nسكن الحارس\n\n\n\n6015","Autre Logement \nسكن آخر\n\n\n\n\n6099"]
[" disponibles","Nombre","Bon Etat"]
[null,null,"Défectueux"]
[null,"dont Nouvelles créations"]
[null,"dont utilisées ","Bon Etat"]
[null,null,"Défectueux"]
[null,"dont utilisées pour autre fin","Bon Etat"]
[null,null,"Défectueux"]
[null,"dont prêtés ","Bon Etat"]
[null,null,"Défectueux"]
[null,"dont fermés ","Bon Etat"]
[null,null,"Défectueux"]
["Empruntés "]
[null,null,null,{"$f":"IF(AND(D59+D60=D62+D63+D64+D65+D66+D67+D68+D69,D60=D63+D65+D67+D69,D59=D62+D64+D66+D68),\"OK\",\"ERREUR\")","v":"OK"},"OK","OK","OK","OK","OK","OK","OK"]

{"sheet":"Q 03 IMP","index":10,"n_rows":67,"n_cols":13,"rows_kept":67,"cut":false,"hidden":true,"merged":[[66,0,66,2],[42,1,42,2],[53,0,53,12],[55,0,65,0],[55,1,56,1],[57,1,57,2],[62,1,63,1],[64,1,65,1],[47,1,48,1],[40,0,50,0],[58,1,59,1],[60,1,61,1],[43,1,44,1],[45,1,46,1],[40,1,41,1],[34,1,35,1],[36,0,36,2],[38,0,38,12],[51,0,51,2],[28,1,29,1],[25,0,35,0],[30,1,31,1],[49,1,50,1],[32,1,33,1],[25,1,26,1],[27,1,27,2],[21,0,21,2],[23,0,23,12],[0,0,0,5],[2,0,2,12],[4,0,4,12],[6,1,6,2],[8,0,8,12],[10,0,20,0],[19,1,20,1],[6,9,6,11],[6,4,6,7],[13,1,14,1],[12,1,12,2],[10,1,11,1],[15,1,16,1],[17,1,18,1]]}
["Questionnaire  Q03   استمــــارة ",null,null,null,null,null,"Public عمومي",null,null,"Privé خصوصي"]
[]
["Espace d'accueil : Bloc administratif et sanitaire, Hebergement et Restauration, Sportif et Logement     "]
[]
["فضاءات الاستقبال : المرافق الإدارية  و الصحية و الإطعام والإيواء و الملاعب الرياضية والسكنيات"]
[]
[null,"Etablissement  المؤسسة",null,null,{"$f":"'مسك 1'!E2","v":"مؤسسة النصر"},null,null,null,null,{"$f":"'مسك 1'!Q2","v":"50706P"}]
[]
["BLOC ADMINISTRATIF ET SANITAIRE    المرافق الإدارية  و الصحية"]
[null,null,null,"Bureaux Administratifs\nمكاتب إدارية\n2000","Salle des enseignants\nقاعة الاساتذة\n2005","Entrepot\nمستودع\n\n2007","Salle d'Archives \nقاعة الأرشيف\n2009","Salle de conférence\nقاعة المحاضرات\n2011","Infirmerie\nالمصحة\n\n2013","Salle de prière\nالمسجد\n2015","Salle de permanence\nقاعة المداومة\n2017","Bibliothèque\nمكتبة\n\n2021","Latrines\nالمرافق الصحية\n\n2023"]
[" disponibles","Nombre","Bon Etat"]
[null,null,"Défectueux"]
[null,"dont Nouvelles créations"]
[null,"dont utilisées ","Bon Etat"]
[null,null,"Défectueux"]
[null,"dont utilisées pour autre fin","Bon Etat"]
[null,null,"Défectueux"]
[null,"dont prêtés ","Bon Etat"]
[null,null,"Défectueux"]
[null,"dont fermés ","Bon Etat"]
[null,null,"Défectueux"]
["Empruntés "]
[]
["BLOC RESTAURATION ET HEBERGEMENT    مرافق الإطعام والإيواء"]
[null,null,null,"Refectoir Cantine scolaire\nقاعة الاطعام\n4001","Cuisine Cantine scolaire\nالمطبخ\n4003","Dortoir\nمراقد\n\n\n4101","Pioles\nغرف النوم\n\n\n4103","Foyer\nمأوى\n\n\n4105","Refectoir Inernat\n قاعة الإطعام للداخلية\n4107"]
[" disponibles","Nombre","Bon Etat"]
[null,null,"Défectueux"]
[null,"dont Nouvelles créations"]
[null,"dont utilisées ","Bon Etat"]
[null,null,"Défectueux"]
[null,"dont utilisées pour autre fin","Bon Etat"]
[null,null,"Défectueux"]
[null,"dont prêtés ","Bon Etat"]
[null,null,"Défectueux"]
[null,"dont fermés ","Bon Etat"]
[null,null,"Défectueux"]
["Empruntés "]
[]
["BLOC SPORTIF    المرافق الرياضية"]
[null,null,null,"Terrain de Foot-ball\nملعب كرة القدم\n\n5003","Terrain de Hand-Ball\nملعب كرة اليد\n\n5005","Terrain de Volly-Ball\n ملعب الكرة الطائرة\n5007","Terrain de Basket-Ball \n ملعب كرة السلة\n\n5009","Piste \nحلبة\n\n\n5015","Salle de gymnastique\nقاعة الجمباز\n\n5017","Vestiaire pour Garçons\n  مستودع للذكور \n\n5019","Vestiaire pour Filles\nمستودع للإناث \n\n5021"]
[" disponibles","Nombre","Bon Etat"]
[null,null,"Défectueux"]
[null,"dont Nouvelles créations"]
[null,"dont utilisées ","Bon Etat"]
[null,null,"Défectueux"]
[null,"dont utilisées pour autre fin","Bon Etat"]
[null,null,"Défectueux"]
[null,"dont prêtés ","Bon Etat"]
[null,null,"Défectueux"]
[null,"dont fermés ","Bon Etat"]
[null,null,"Défectueux"]
["Empruntés "]
[]
["BLOC LOGEMENTS    السكنيات"]
[null,null,null,"Logement pour Directeur\nسكن المدير\n\n\n\n6001","Logement pour Censeur\nسكن الناظر \n\n\n\n\n6005","Logement pour surveillants généraux d'externat\nسكن الحراس العامين للخارجية\n6007","Logement pour surveillants généraux d'internat\nسكن حارس عام الداخلية\n6009","Logement pour Econome / intendant\nسكن المقتصد \\ الممون\n\n6011","Logement pour enseignants\nسكن المدرسين\n\n\n\n6013","Logement pour le concièrge\nسكن الحارس\n\n\n\n6015","Autre Logement \nسكن آخر\n\n\n\n\n6099"]
[" disponibles","Nombre","Bon Etat"]
[null,null,"Défectueux"]
[null,"dont Nouvelles créations"]
[null,"dont utilisées ","Bon Etat"]
[null,null,"Défectueux"]
[null,"dont utilisées pour autre fin","Bon Etat"]
[null,null,"Défectueux"]
[null,"dont prêtés ","Bon Etat"]
[null,null,"Défectueux"]
[null,"dont fermés ","Bon Etat"]
[null,null,"Défectueux"]
["Empruntés "]

{"sheet":"الداخليات","index":11,"n_rows":109,"n_cols":12,"rows_kept":109,"cut":false,"hidden":true,"merged":[[27,1,27,2],[27,3,27,5],[28,1,28,3],[29,1,29,3],[30,1,30,3],[29,4,41,7],[18,6,19,8],[18,9,19,11],[8,7,8,11],[26,1,26,2],[26,3,26,5],[21,1,21,2],[21,3,21,5],[22,1,22,2],[22,3,22,5],[23,1,23,2],[23,3,23,5],[24,1,24,2],[24,3,24,5],[25,1,25,2],[25,3,25,5],[7,1,7,2],[8,1,8,2],[13,1,13,11],[16,6,17,8],[16,9,17,11],[0,0,0,12],[1,0,1,12],[3,1,3,10],[4,1,4,2],[4,6,4,12],[4,3,4,4]]}
["Questionnaire  Q08    استمـــــارة"]
["Bénéficiaires des cantines scolaires et des internats publics    المستفيدون من المطاعم المدرسية والداخليات بالعمومي"]
[]
["I/."," IDENTIFICATION DE L'ÉTABLISSEMENT   تعـــريف المؤسســــة"]
[null,"1.1  Etablissement       المؤسســـة",null,{"$f":"'مسك 1'!Q2","v":"50706P"},null,null,{"$f":"'مسك 1'!E2","v":"مؤسسة النصر"}]
[]
[]
["II/.","Statistiques    إحصائيات"]
[null,"2.1  Formation           التكوين",null,"I__I__I__I__I__I__I__I__I__I__I",null,null,null,"السنة الأولى ث. إعدادي"]
[]
[]
[]
[]
[null,"2.2  Répartition des bénéficiaires                     توزيع المستفيدين"]
[]
[]
[null,null,null,null,null,null,"Total des bénéficiaires ",null,null,"dont bénéficiairesissus d'autres établissements "]
[]
[null,null,null,null,null,null,"مجموع المستفيدون ",null,null,"منهم المستفيدون المنتمون إلى مؤسسات أخرى"]
[]
[null,null,null,null,null,null,"Garçons\nذكــــور","Filles\nإنـــاث","Total\nمجموع","Garçons\nذكــــور","Filles\nإنـــاث","Total\nمجموع"]
[null,"Restauration",null,"الإطعام",null,null,{"$f":"VLOOKUP(H9,'مسك 4'!$B$6:$AD$32,2,0)","v":0},{"$f":"VLOOKUP(H9,'مسك 4'!$B$6:$AD$32,3,0)","v":0},{"$f":"SUM(G22:H22)","v":0},{"$f":"VLOOKUP(H9,'مسك 4'!$B$6:$AD$32,4,0)","v":0},{"$f":"VLOOKUP(H9,'مسك 4'!$B$6:$AD$32,5,0)","v":0},{"$f":"SUM(J22:K22)","v":0}]
[null,"Internes ",null,"الداخليون",null,null,{"$f":"VLOOKUP(H9,'مسك 4'!$B$6:$AD$32,6,0)","v":0},{"$f":"VLOOKUP(H9,'مسك 4'!$B$6:$AD$32,7,0)","v":0},{"$f":"SUM(G23:H23)","v":0},{"$f":"VLOOKUP(H9,'مسك 4'!$B$6:$AD$32,8,0)","v":0},{"$f":"VLOOKUP(H9,'مسك 4'!$B$6:$AD$32,9,0)","v":0},{"$f":"SUM(J23:K23)","v":0}]
[null,"Boursiers",null,"الممنوحون",null,null,{"$f":"VLOOKUP(H9,'مسك 4'!$B$6:$AD$32,10,0)","v":0},{"$f":"VLOOKUP(H9,'مسك 4'!$B$6:$AD$32,11,0)","v":0},0,{"$f":"VLOOKUP(H9,'مسك 4'!$B$6:$AD$32,12,0)","v":0},{"$f":"VLOOKUP(H9,'مسك 4'!$B$6:$AD$32,13,0)","v":0},0]
[null,"dont nouveaux  Boursiers",null,"الممنوحون الجدد",null,null,{"$f":"VLOOKUP(H9,'مسك 4'!$B$6:$AD$32,14,0)","v":0},{"$f":"VLOOKUP(H9,'مسك 4'!$B$6:$AD$32,15,0)","v":0},0,{"$f":"VLOOKUP(H9,'مسك 4'!$B$6:$AD$32,16,0)","v":0},{"$f":"VLOOKUP(H9,'مسك 4'!$B$6:$AD$32,17,0)","v":0},0]
[null,"dont nouveaux Boursiers issus du rural",null,"الممنوحون الجدد الوافدون من الوسط القروي",null,null,{"$f":"VLOOKUP(H9,'مسك 4'!$B$6:$AD$32,18,0)","v":0},{"$f":"VLOOKUP(H9,'مسك 4'!$B$6:$AD$32,19,0)","v":0},0,{"$f":"VLOOKUP(H9,'مسك 4'!$B$6:$AD$32,20,0)","v":0},{"$f":"VLOOKUP(H9,'مسك 4'!$B$6:$AD$32,21,0)","v":0},0]
[null,"1/2 Boursiers",null,"نصف الممنوحين",null,null,{"$f":"VLOOKUP(H9,'مسك 4'!$B$6:$AD$32,22,0)","v":0},{"$f":"VLOOKUP(H9,'مسك 4'!$B$6:$AD$32,23,0)","v":0},0,{"$f":"VLOOKUP(H9,'مسك 4'!$B$6:$AD$32,24,0)","v":0},{"$f":"VLOOKUP(H9,'مسك 4'!$B$6:$AD$32,25,0)","v":0},0]
[null,"Payants",null,"المؤدون",null,null,{"$f":"VLOOKUP(H9,'مسك 4'!$B$6:$AD$32,26,0)","v":0},{"$f":"VLOOKUP(H9,'مسك 4'!$B$6:$AD$32,27,0)","v":0},0,{"$f":"VLOOKUP(H9,'مسك 4'!$B$6:$AD$32,28,0)","v":0},{"$f":"VLOOKUP(H9,'مسك 4'!$B$6:$AD$32,29,0)","v":0},0]
[]
[null,null,null,null,"\nتوقيع السيد(ة) المدير(ة):"]
[]
[]
[]
[]
[]
[]
[]
[]
[]
[]
[]
[]
[]
[]
[]
[]
[]
[]
[]
[]
[]
[]
[]
[]
[]
[]
[]
[]
[]
[]
[]
[]
[]
[]
[]
[]
[]
[]
[]
[]
[]
[]
[]
[]
[]
[]
[]
[]
[]
[]
[]
[]
[null,"السنة الأولى ث. إعدادي",1]
[null,"السنة الثانية ث. إعدادي",2]
[null,"السنة الثالثة ث. إعدادي",3]
[null,"ج م الأدبي",4]
[null,"ج م العلمي",5]
[null,"ج م التكنولوجي",6]
[null,"ج م أصيل",7]
[null,"س 1 الآداب و العلوم الإنسانية",8]
[null,"س 1 العلوم التجريبية",9]
[null,"س 1 العلوم الرياضية",10]
[null,"س 1 العلوم الإقتصادية و التدبير",11]
[null,"س 1 العلوم و التكنولوجيات الكهربائية",12]
[null,"س 1 العلوم و التكنولوجيات الميكانيكية",13]
[null,"س 1 اللغة العربية",14]
[null,"س 2 الآداب ",15]
[null,"س 2 العلوم الإنسانية",16]
[null,"س 2 علوم الحياة والأرض",17]
[null,"س 2 العلوم الفيزيائية",18]
[null,"مجموع س2 علوم تجريبية",19]
[null,"س 2علوم التدبير المحاسباتي",20]
[null,"س 2 العلوم الإقتصادية",21]
[null,"س 2علوم رياضية ا",22]
[null,"س 2 علوم رياضية ب",23]
[null,"س 2 العلوم و التكنولوجيات الكهربائية",24]
[null,"س 2 العلوم و التكنولوجيات الميكانيكية",25]
[null,"س 2 اللغة العربية",26]
[null,"المجموع العام"]

{"sheet":"الدعم","index":12,"n_rows":111,"n_cols":20,"rows_kept":111,"cut":false,"hidden":true,"merged":[[35,1,35,2],[35,4,35,7],[36,1,36,2],[36,4,36,7],[43,1,43,2],[43,4,43,7],[37,1,37,2],[37,4,37,7],[39,1,39,2],[39,4,39,7],[41,1,41,2],[41,4,41,7],[29,13,29,15],[29,17,29,19],[31,1,31,2],[31,4,31,7],[33,1,33,2],[33,4,33,7],[24,7,24,9],[25,7,25,9],[27,1,27,10],[29,1,29,7],[29,9,29,11],[18,11,18,13],[20,11,20,13],[20,17,20,19],[22,6,22,7],[22,11,22,13],[22,17,22,19],[45,9,57,15],[1,0,1,19],[2,0,2,19],[3,0,3,19],[5,1,5,19],[7,5,7,6],[7,8,7,19],[9,5,9,6],[9,8,9,19],[11,5,11,6],[11,8,11,19],[13,5,13,6],[13,8,13,19],[15,5,15,6],[15,8,15,19],[16,1,16,19]]}
[]
["Questionnaire  Q14 استمــارة"]
["Fiche de distribution des manuels et fournitures scolaires à la rentrée scolaire"]
["بطاقة توزيع الكتب والأدوات المدرسية عند الدخول المدرسي"]
[]
["I/."," IDENTIFICATION DE L'ETABLISSEMENT            تعريف المؤسسة       "]
[]
[null,"  Etablissement       المؤسســـة",null,null,null,{"$f":"'مسك 1'!Q2","v":"50706P"},null,null,{"$f":"'مسك 1'!E2","v":"مؤسسة النصر"}]
[]
[null,"Région","الجهة",null,null,"06",null,null,"الدار البيضاء سطات"]
[]
[null,"Province","الإقليم",null,null,142,null,null,"عمالة مقاطعات الفداء مرس السلطان"]
[]
[null,"Commune","الجماعة",null,null,{"$f":"IF(I14=\"\",\"\",VLOOKUP(I14,$L$110:$M$111,2,0))","v":1420111},null,null,{"$f":"ACCUEIL!E12","v":"مقاطعة الفداء"}]
[]
[null,"Milieu","الوسط",null,null,"U",null,null,"حضري"]
["II/."," DONNATEURS         المانحــون"]
[]
[null,null,null,null,null,null,"Etat\nالدولة",null,null,null,null,"Collectivités locales\nالجماعات المحلية",null,null,null,null,null,"Privé\nخاص"]
[]
[null,null,null,null,null,null,"Fondation\nمؤسسة",null,null,null,null,"ONG interne\nهيئة غير حكومية داخلية",null,null,null,null,null,"ONG externe\nهيئة غير حكومية خارجية"]
[]
[null,null,null,null,null,null,"Association interne\nجمعية داخلية",null,null,null,null,"Association externe\nجمعية خارجية",null,null,null,null,null,"Mecenats\nمحــســـنون"]
[]
[null,null,null,null,null,null,"Autre\nآخـــر"]
[]
["III/.","REPARTITION DES BENEFICIAIRES PAR TYPE D'APPUI, CYCLE ET SEXE"]
[null,"توزيع المستفيدين حسب نوع الدعم السلك والجنس"]
[]
[null," Type d'appui   نوع الدعــم",null,null,null,null,null,null,null,"Primaire\nالابتدائي",null,null,null,"Collégial\nالإعدادي",null,null,null,"Qualifiant\nالتأهيلي"]
[]
[null,"Code  الرمز\n  ",null,null," Type d'appui   نوع الدعــم",null,null,null,null,"Total\nمجموع",null,"Filles\nإناث",null,"Total\nمجموع",null,"Filles\nإناث",null,"Total\nمجموع",null,"Filles\nإناث"]
[]
[null,"I_2_I",null,null,"Kits complets"]
[]
[null,"I_3_I",null,null,"Manuels et fournitures"]
[null,"I_4_I",null,null,"Lunettes"]
[null,"I_5_I",null,null,"Vélos"]
[]
[null,"I_6_I",null,null,"Uniformes scolaires"]
[]
[null,"I_8_I",null,null,"Manuels"]
[]
[null,"I_7_I",null,null,"Autre"]
[]
[null,null,null,null,null,null,null,null,null,"\nتوقيع السيد(ة) المدير(ة):"]
[]
[]
[]
[]
[]
[]
[]
[]
[]
[]
[]
[]
[]
[]
[]
[]
[]
[]
[]
[]
[]
[]
[]
[]
[]
[]
[]
[]
[]
[]
[]
[]
[]
[]
[]
[]
[]
[]
[]
[]
[]
[]
[]
[]
[]
[]
[]
[]
[]
[]
[]
[]
[]
[]
[]
[]
[]
[]
[]
[]
[]
[]
[]
[null,null,null,null,null,null,null,null,null,null,null,"مقاطعة الفداء",1420111]
[null,null,null,null,null,null,null,null,null,null,null,"مقاطعة مرس السلطان",1420113]

{"sheet":"الأجانب","index":13,"n_rows":73,"n_cols":13,"rows_kept":73,"cut":false,"hidden":false,"merged":[[29,3,29,4],[29,9,29,12],[25,1,25,3],[25,4,25,5],[25,6,25,7],[25,8,25,9],[25,10,25,11],[25,12,25,14],[26,1,26,3],[26,4,26,5],[26,6,26,7],[26,8,26,9],[26,10,26,11],[26,12,26,14],[23,1,23,3],[23,4,23,5],[23,6,23,7],[23,8,23,9],[23,10,23,11],[23,12,23,14],[24,1,24,3],[24,4,24,5],[24,6,24,7],[24,8,24,9],[24,10,24,11],[24,12,24,14],[21,1,21,3],[21,4,21,5],[21,6,21,7],[21,8,21,9],[21,10,21,11],[21,12,21,14],[22,1,22,3],[22,4,22,5],[22,6,22,7],[22,8,22,9],[22,10,22,11],[22,12,22,14],[19,1,19,3],[19,4,19,5],[19,6,19,7],[19,8,19,9],[19,10,19,11],[19,12,19,14],[20,1,20,3],[20,4,20,5],[20,6,20,7],[20,8,20,9],[20,10,20,11],[20,12,20,14],[17,1,17,3],[17,4,17,5],[17,6,17,7],[17,8,17,9],[17,10,17,11],[17,12,17,14],[18,1,18,3],[18,4,18,5],[18,6,18,7],[18,8,18,9],[18,10,18,11],[18,12,18,14],[15,1,15,3],[15,4,15,5],[15,6,15,7],[15,8,15,9],[15,10,15,11],[15,12,15,14],[16,1,16,3],[16,4,16,5],[16,6,16,7],[16,8,16,9],[16,10,16,11],[16,12,16,14],[13,1,13,3],[13,4,13,5],[13,6,13,7],[13,8,13,9],[13,10,13,11],[13,12,13,14],[14,1,14,3],[14,4,14,5],[14,6,14,7],[14,8,14,9],[14,10,14,11],[14,12,14,14],[11,1,11,3],[11,4,11,5],[11,6,11,7],[11,8,11,9],[11,10,11,11],[11,12,11,14],[12,1,12,3],[12,4,12,5],[12,6,12,7],[12,8,12,9],[12,10,12,11],[12,12,12,14],[0,0,0,4],[1,0,1,4],[2,0,3,14],[4,0,4,14],[7,2,7,8],[7,10,7,11],[7,12,7,14],[0,10,0,14],[1,10,1,14]]}
["الأكاديمية الجهوية للتربية والتكوين ",null,null,null,null,null,null,null,null,null,"المديرية الإقليمية بالفداء مرس السلطان"]
["لجهة الدار البيضاء سطات",null,null,null,null,null,null,null,null,null,"مصلحة التخطيط و الخريطة المدرسية"]
["لائحة التلاميذ الأجانب"]
[]
["الموسم الدراسي : 2017/2016"]
[]
[]
["المؤسسة :",null,{"$f":"ACCUEIL!E6","v":"مؤسسة النصر"},null,null,null,null,null,null,null,"الرمز :",null,{"$f":"ACCUEIL!E9","v":"50706P"}]
[]
[]
[]
["ر.ت","الإسم الكامل للتلميذ",null,null,"تاريخ الإزدياد",null,"الجنسية",null,"المستوى الدراسي",null,"داخلي /خارجي",null,"العنوان"]
[1,null,null,null,null,null,null,null,null,null,"خارجي"]
[2]
[3]
[4]
[5]
[6]
[7]
[8]
[9]
[10]
[11]
[12]
[13]
[14]
[15]
[]
[]
[null,"الدار البيضاء في : ",null,{"$f":"TODAY()","v":"2016-11-29"},null,null,null,null,null,"توقيع السيد (ة) المدير (ة) :"]
[]
[]
[]
[]
[]
[]
[]
[]
[]
[]
[]
[]
[]
[]
[]
[]
[]
[]
[]
[]
[]
[]
[]
[]
[]
[]
[]
[]
[]
[]
[]
[]
[]
[]
[]
[]
[]
[]
[null,null,null,null,null,"السنة الأولى ث. إعدادي",null,"داخلي"]
[null,null,null,null,null,"السنة الأولى ث. إعدادي كهرباء البناء",null,"خارجي"]
[null,null,null,null,null,"السنة الأولى ث. إعدادي نجارة الخشب و الألمنيوم"]
[null,null,null,null,null,"السنة الثانية ث. إعدادي"]
[null,null,null,null,null,"السنة الثالثة ث. إعدادي"]

{"sheet":"الموضفون","index":14,"n_rows":32,"n_cols":13,"rows_kept":32,"cut":false,"hidden":false,"merged":[[22,3,23,3],[3,1,3,3],[3,4,3,5],[3,7,3,10],[6,3,6,5],[6,9,6,11],[8,5,8,6],[9,5,9,6],[10,5,10,6],[15,3,15,5],[20,3,20,4],[21,3,21,4],[24,3,25,3],[26,3,26,4],[27,3,27,4],[30,9,30,12],[31,9,31,12]]}
[null,"                                ",null,null,"Questionnaire  Q12/2",null,null,null,"Fiche Personnel (Privé)    ",null,null,null," بطاقة الموظفين (خصوصي)"]
[]
[]
[null,"Etablissement  المؤسسة ",null,null,{"$f":"+ACCUEIL!E9","v":"50706P"},null,null,{"$f":"+ACCUEIL!E6","v":"مؤسسة النصر"}]
[]
[]
[null,null,null,"I/. PERSONNEL ADMINISTRATIF",null,null,null,"هيأة الإدارة",null,"II/. PERSONNEL DE SERVICE",null,null,"هيأة الخدمات"]
[]
[null,null,null,null,"Total","Dont femmes",null,null,null,null,"Total","Dont femmes"]
[null,null,null,null,"المجموع","الإناث منهم",null,null,null,null,"المجموع","الإناث منهم"]
[]
[]
[]
[]
[]
[null,null,null,"III/. PERSONNEL ENSEIGNANT",null,null,null,null,null,null,null,null,"هيأة التدريس"]
[]
[]
[null,null,null,null,null,null,null,"Préscolaire","Primaire","Sec Collégial","Sec Qualifiant","CPGE","Total"]
[null,null,null,null,null,null,null,"أولي","ابتدائي","ث. إعدادي","ث. تأهيلي","أقسام تحضيرية","المجموع"]
[null,null,null,"Permanants",null,"Total","المجموع",null,null,null,null,null,{"$f":"SUM(H21:L21)","v":0}]
[null,null,null,"دائمين",null,"Femmes","الإناث",null,null,null,null,null,0]
[null,null,null,"Vacataires","Total","Total","المجموع",null,null,null,null,null,0]
[null,null,null,null,"المجموع","Femmes","الإناث",null,null,null,null,null,0]
[null,null,null,"غير دائمين","Dont Public","Total","المجموع",null,null,null,null,null,0]
[null,null,null,null,"العمومي منهم","Femmes","الإناث",null,null,null,null,null,0]
[null,null,null,"Total",null,"Total","المجموع",{"$f":"H21+H23","v":0},0,0,0,0,0]
[null,null,null,"المجموع",null,"Femmes","الإناث",0,0,0,0,0,0]
[]
[]
[null,null,null,null,null,null,null,null,null,"Cachet et Signature du chef d'établissement"]
[null,null,null,null,null,null,null,null,null,"خاتم وتوقيع السيد(ة) رئيس(ة) المؤسسة"]

{"sheet":"بطاقة المؤسسة","index":15,"n_rows":39,"n_cols":17,"rows_kept":39,"cut":false,"hidden":false,"merged":[[36,2,36,5],[20,0,20,16],[9,0,9,9],[16,8,16,9],[17,8,17,9],[18,8,18,9],[23,0,35,0],[23,1,33,1],[34,1,35,1],[11,8,12,9],[13,8,13,9],[14,8,14,9],[15,8,15,9],[25,2,25,5],[23,2,24,3],[23,4,23,5],[24,4,24,5],[55,17,55,20],[7,12,7,15],[38,2,38,3],[18,11,18,12],[18,14,18,15],[38,9,38,12],[14,11,15,12],[16,11,16,13],[16,14,16,16],[17,11,17,12],[17,14,17,15],[7,2,7,8],[7,10,7,11],[14,2,14,3],[15,2,15,3],[14,4,14,5],[16,6,16,7],[14,0,14,1],[15,0,15,1],[15,4,15,5],[18,0,18,1],[18,2,18,3],[17,0,17,1],[17,2,17,3],[17,4,17,5],[18,4,18,5],[18,6,18,7],[17,6,17,7],[14,6,14,7],[15,6,15,7],[0,13,1,17],[11,13,11,14],[11,15,11,16],[13,0,13,1],[13,2,13,3],[13,4,13,5],[13,6,13,7],[11,11,11,12],[11,0,12,1],[11,2,12,3],[11,4,11,7],[12,4,12,5],[12,6,12,7],[26,2,27,3],[28,2,29,3],[30,2,31,3],[32,2,33,3],[0,0,0,4],[16,0,16,1],[16,2,16,3],[16,4,16,5],[26,4,26,5],[27,4,27,5],[28,4,28,5],[29,4,29,5],[30,4,30,5],[1,0,1,4],[2,0,3,17],[4,0,4,17],[34,2,34,5],[35,2,35,5],[31,4,31,5],[32,4,32,5],[33,4,33,5]]}
["الأكاديمية الجهوية للتربية والتكوين ",null,null,null,null,null,null,null,null,null,null,null,null,"المديرية الإقليمية بالفداء مرس السلطان"]
["لجهة الدار البيضاء سطات"]
["بطاقة المؤسسة"]
[]
["الموسم الدراسي : 2017/2016"]
[]
[]
["المؤسسة :",null,{"$f":"'مسك 1'!E2","v":"مؤسسة النصر"},null,null,null,null,null,null,null,"الرمز :",null,{"$f":"'مسك 1'!Q2","v":"50706P"}]
[]
["التلاميذ والفصول :",null,null,null,null,null,null,null,null,null,null," هيئة التدريس"]
[]
["المستوى",null,"عدد\nالفصول",null,"العدد الإجمالي للتلاميذ",null,null,null,"معدل التلاميذ بالقسم",null,null,"الدائمون",null,"المؤقتون",null,"المجموع"]
[null,null,null,null,"المجموع",null,"إناث",null,null,null,null,"مجموع","إناث","مجموع","إناث","مجموع","إناث"]
["السنة الأولى ث. إعدادي",null,{"$f":"'مسك 2'!B5","v":0},null,{"$f":"SUM('مسك 1'!D8:AI8)","v":0},null,{"$f":"SUM('مسك 1'!E8,'مسك 1'!G8,'مسك 1'!I8,'مسك 1'!K8,'مسك 1'!M8,'مسك 1'!O8,'مسك 1'!Q8,'مسك 1'!S8,'مسك 1'!U8,'مسك 1'!W8,'مسك 1'!Y8,'مسك 1'!AA8,'مسك 1'!AC8,'مسك 1'!AE8,'مسك 1'!AG8,'مسك 1'!AI8)","v":0},null,{"$f":"IF(C14=0,\"\",ROUND(E14/C14,0))","v":""},null,null,{"$f":"الموضفون!J21","v":0},{"$f":"الموضفون!J22","v":0},{"$f":"الموضفون!J23","v":0},{"$f":"الموضفون!J24","v":0},{"$f":"L14+N14","v":0},{"$f":"M14+O14","v":0}]
["السنة الأولى ث. إعدادي كهرباء البناء",null,{"$f":"'مسك 2'!B6","v":0},null,{"$f":"+SUM('مسك 1'!D9:AI9)","v":0},null,{"$f":"SUM('مسك 1'!E9,'مسك 1'!G9,'مسك 1'!I9,'مسك 1'!K9,'مسك 1'!M9,'مسك 1'!O9,'مسك 1'!Q9,'مسك 1'!S9,'مسك 1'!U9,'مسك 1'!W9,'مسك 1'!Y9,'مسك 1'!AA9,'مسك 1'!AC9,'مسك 1'!AE9,'مسك 1'!AG9,'مسك 1'!AI9)","v":0},null,{"$f":"IF(C15=0,\"\",ROUND(E15/C15,0))","v":""},null,null,"هيئة الإدارة والخدمات"]
["السنة الأولى ث. إعدادي نجارة الخشب و الألمنيوم",null,{"$f":"'مسك 2'!B7","v":0},null,{"$f":"+SUM('مسك 1'!D10:AI10)","v":0},null,{"$f":"SUM('مسك 1'!E10,'مسك 1'!G10,'مسك 1'!I10,'مسك 1'!K10,'مسك 1'!M10,'مسك 1'!O10,'مسك 1'!Q10,'مسك 1'!S10,'مسك 1'!U10,'مسك 1'!W10,'مسك 1'!Y10,'مسك 1'!AA10,'مسك 1'!AC10,'مسك 1'!AE10,'مسك 1'!AG10,'مسك 1'!AI10)","v":0},null,""]
["السنة الثانية ث. إعدادي",null,{"$f":"'مسك 2'!B8","v":0},null,{"$f":"+SUM('مسك 1'!D11:AI11)","v":0},null,{"$f":"SUM('مسك 1'!E11,'مسك 1'!G11,'مسك 1'!I11,'مسك 1'!K11,'مسك 1'!M11,'مسك 1'!O11,'مسك 1'!Q11,'مسك 1'!S11,'مسك 1'!U11,'مسك 1'!W11,'مسك 1'!Y11,'مسك 1'!AA11,'مسك 1'!AC11,'مسك 1'!AE11,'مسك 1'!AG11,'مسك 1'!AI11)","v":0},null,"",null,null,"هيئة الإدارة ",null,null,"هيئة الخدمات "]
["السنة الثالثة ث. إعدادي",null,{"$f":"'مسك 2'!B9","v":0},null,{"$f":"+SUM('مسك 1'!D12:AI12)","v":0},null,{"$f":"SUM('مسك 1'!E12,'مسك 1'!G12,'مسك 1'!I12,'مسك 1'!K12,'مسك 1'!M12,'مسك 1'!O12,'مسك 1'!Q12,'مسك 1'!S12,'مسك 1'!U12,'مسك 1'!W12,'مسك 1'!Y12,'مسك 1'!AA12,'مسك 1'!AC12,'مسك 1'!AE12,'مسك 1'!AG12,'مسك 1'!AI12)","v":0},null,"",null,null,"مجموع",null,"إناث","مجموع",null,"إناث"]
["المجموع",null,{"$f":"SUM(C14:D18)","v":0},null,{"$f":"SUM(E14:F18)","v":0},null,{"$f":"SUM(G14:H18)","v":0},null,"",null,null,{"$f":"الموضفون!E11","v":0},null,{"$f":"الموضفون!F11","v":0},{"$f":"الموضفون!K11","v":0},null,{"$f":"الموضفون!L11","v":0}]
[]
["الحجرات"]
[]
[null,null,null,null,null,null,"(9)\nSalle d'Enseignement Général\nحجرة التعليم العام\n\n 3001","(10)\nSalle de cours Physique-chimie \nقاعة الفيزياء والكيمياء\n3201","(11)\nSalle de cours SVT \nقاعة علوم الحياة والارض\n\n3203","(13)\nLabo des sciences TP \nمختبر العلوم\n\n\n3301","(14)\nSalle d'informatique/ multimédia \nقاعة الإعلاميات ومتعددة الوسائط \n3105","(17)\nSalle de technologie\nقاعة التكنولوجيا\n\n\n3109","(15)\nSalle des arts plastiques\nقاعة الفنون التشكيلية\n\n3113","(18)\nSalle d'éducation familliale\nقاعة التربية الأسرية\n3117","(19)\nSalle d'éducation musicale\nقاعة التربية الموسيقية\n3119","(20)\nExtérieur"]
["الحجرات الدراسية","المتوفرة","العدد",null,"صالحة",null,{"$f":"'مدرسون حجرات'!E33","v":0},{"$f":"'مدرسون حجرات'!F33","v":0},{"$f":"'مدرسون حجرات'!G33","v":0},{"$f":"'مدرسون حجرات'!H33","v":0},{"$f":"'مدرسون حجرات'!I33","v":0},{"$f":"'مدرسون حجرات'!J33","v":0},{"$f":"'مدرسون حجرات'!K33","v":0},{"$f":"'مدرسون حجرات'!L33","v":0},{"$f":"'مدرسون حجرات'!M33","v":0},{"$f":"'مدرسون حجرات'!N33","v":0}]
[null,null,null,null,"غير صالحة",null,{"$f":"'مدرسون حجرات'!E34","v":0},{"$f":"'مدرسون حجرات'!F34","v":0},{"$f":"'مدرسون حجرات'!G34","v":0},{"$f":"'مدرسون حجرات'!H34","v":0},{"$f":"'مدرسون حجرات'!I34","v":0},{"$f":"'مدرسون حجرات'!J34","v":0},{"$f":"'مدرسون حجرات'!K34","v":0},{"$f":"'مدرسون حجرات'!L34","v":0},{"$f":"'مدرسون حجرات'!M34","v":0},{"$f":"'مدرسون حجرات'!N34","v":0}]
[null,null,"المحدثة منها",null,null,null,{"$f":"'مدرسون حجرات'!E35","v":0},{"$f":"'مدرسون حجرات'!F35","v":0},{"$f":"'مدرسون حجرات'!G35","v":0},{"$f":"'مدرسون حجرات'!H35","v":0},{"$f":"'مدرسون حجرات'!I35","v":0},{"$f":"'مدرسون حجرات'!J35","v":0},{"$f":"'مدرسون حجرات'!K35","v":0},{"$f":"'مدرسون حجرات'!L35","v":0},{"$f":"'مدرسون حجرات'!M35","v":0},{"$f":"'مدرسون حجرات'!N35","v":0}]
[null,null,"المستعملة منها للتدريس",null,"صالحة",null,{"$f":"'مدرسون حجرات'!E36","v":0},{"$f":"'مدرسون حجرات'!F36","v":0},{"$f":"'مدرسون حجرات'!G36","v":0},{"$f":"'مدرسون حجرات'!H36","v":0},{"$f":"'مدرسون حجرات'!I36","v":0},{"$f":"'مدرسون حجرات'!J36","v":0},{"$f":"'مدرسون حجرات'!K36","v":0},{"$f":"'مدرسون حجرات'!L36","v":0},{"$f":"'مدرسون حجرات'!M36","v":0},{"$f":"'مدرسون حجرات'!N36","v":0}]
[null,null,null,null,"غير صالحة",null,{"$f":"'مدرسون حجرات'!E37","v":0},{"$f":"'مدرسون حجرات'!F37","v":0},{"$f":"'مدرسون حجرات'!G37","v":0},{"$f":"'مدرسون حجرات'!H37","v":0},{"$f":"'مدرسون حجرات'!I37","v":0},{"$f":"'مدرسون حجرات'!J37","v":0},{"$f":"'مدرسون حجرات'!K37","v":0},{"$f":"'مدرسون حجرات'!L37","v":0},{"$f":"'مدرسون حجرات'!M37","v":0},{"$f":"'مدرسون حجرات'!N37","v":0}]
[null,null,"مستعملة لأغراض أخرى",null,"صالحة",null,{"$f":"'مدرسون حجرات'!E38","v":0},{"$f":"'مدرسون حجرات'!F38","v":0},{"$f":"'مدرسون حجرات'!G38","v":0},{"$f":"'مدرسون حجرات'!H38","v":0},{"$f":"'مدرسون حجرات'!I38","v":0},{"$f":"'مدرسون حجرات'!J38","v":0},{"$f":"'مدرسون حجرات'!K38","v":0},{"$f":"'مدرسون حجرات'!L38","v":0},{"$f":"'مدرسون حجرات'!M38","v":0},{"$f":"'مدرسون حجرات'!N38","v":0}]
[null,null,null,null,"غير صالحة",null,{"$f":"'مدرسون حجرات'!E39","v":0},{"$f":"'مدرسون حجرات'!F39","v":0},{"$f":"'مدرسون حجرات'!G39","v":0},{"$f":"'مدرسون حجرات'!H39","v":0},{"$f":"'مدرسون حجرات'!I39","v":0},{"$f":"'مدرسون حجرات'!J39","v":0},{"$f":"'مدرسون حجرات'!K39","v":0},{"$f":"'مدرسون حجرات'!L39","v":0},{"$f":"'مدرسون حجرات'!M39","v":0},{"$f":"'مدرسون حجرات'!N39","v":0}]
[null,null,"معارة",null,"صالحة",null,{"$f":"'مدرسون حجرات'!E40","v":0},{"$f":"'مدرسون حجرات'!F40","v":0},{"$f":"'مدرسون حجرات'!G40","v":0},{"$f":"'مدرسون حجرات'!H40","v":0},{"$f":"'مدرسون حجرات'!I40","v":0},{"$f":"'مدرسون حجرات'!J40","v":0},{"$f":"'مدرسون حجرات'!K40","v":0},{"$f":"'مدرسون حجرات'!L40","v":0},{"$f":"'مدرسون حجرات'!M40","v":0},{"$f":"'مدرسون حجرات'!N40","v":0}]
[null,null,null,null,"غير صالحة",null,{"$f":"'مدرسون حجرات'!E41","v":0},{"$f":"'مدرسون حجرات'!F41","v":0},{"$f":"'مدرسون حجرات'!G41","v":0},{"$f":"'مدرسون حجرات'!H41","v":0},{"$f":"'مدرسون حجرات'!I41","v":0},{"$f":"'مدرسون حجرات'!J41","v":0},{"$f":"'مدرسون حجرات'!K41","v":0},{"$f":"'مدرسون حجرات'!L41","v":0},{"$f":"'مدرسون حجرات'!M41","v":0},{"$f":"'مدرسون حجرات'!N41","v":0}]
[null,null,"مغلقة",null,"صالحة",null,{"$f":"'مدرسون حجرات'!E42","v":0},{"$f":"'مدرسون حجرات'!F42","v":0},{"$f":"'مدرسون حجرات'!G42","v":0},{"$f":"'مدرسون حجرات'!H42","v":0},{"$f":"'مدرسون حجرات'!I42","v":0},{"$f":"'مدرسون حجرات'!J42","v":0},{"$f":"'مدرسون حجرات'!K42","v":0},{"$f":"'مدرسون حجرات'!L42","v":0},{"$f":"'مدرسون حجرات'!M42","v":0},{"$f":"'مدرسون حجرات'!N42","v":0}]
[null,null,null,null,"غير صالحة",null,{"$f":"'مدرسون حجرات'!E43","v":0},{"$f":"'مدرسون حجرات'!F43","v":0},{"$f":"'مدرسون حجرات'!G43","v":0},{"$f":"'مدرسون حجرات'!H43","v":0},{"$f":"'مدرسون حجرات'!I43","v":0},{"$f":"'مدرسون حجرات'!J43","v":0},{"$f":"'مدرسون حجرات'!K43","v":0},{"$f":"'مدرسون حجرات'!L43","v":0},{"$f":"'مدرسون حجرات'!M43","v":0},{"$f":"'مدرسون حجرات'!N43","v":0}]
[null,"حجرات أخرى","مستعارة",null,null,null,{"$f":"'مدرسون حجرات'!E44","v":0},{"$f":"'مدرسون حجرات'!F44","v":0},{"$f":"'مدرسون حجرات'!G44","v":0},{"$f":"'مدرسون حجرات'!H44","v":0},{"$f":"'مدرسون حجرات'!I44","v":0},{"$f":"'مدرسون حجرات'!J44","v":0},{"$f":"'مدرسون حجرات'!K44","v":0},{"$f":"'مدرسون حجرات'!L44","v":0},{"$f":"'مدرسون حجرات'!M44","v":0},{"$f":"'مدرسون حجرات'!N44","v":0}]
[null,null,"نوع آخر من الحجرات",null,null,null,{"$f":"'مدرسون حجرات'!E45","v":0},{"$f":"'مدرسون حجرات'!F45","v":0},{"$f":"'مدرسون حجرات'!G45","v":0},{"$f":"'مدرسون حجرات'!H45","v":0},{"$f":"'مدرسون حجرات'!I45","v":0},{"$f":"'مدرسون حجرات'!J45","v":0},{"$f":"'مدرسون حجرات'!K45","v":0},{"$f":"'مدرسون حجرات'!L45","v":0},{"$f":"'مدرسون حجرات'!M45","v":0},{"$f":"'مدرسون حجرات'!N45","v":0}]
[null,null,"مجموع الحجرات المستعملة",null,null,null,{"$f":"'مدرسون حجرات'!E46","v":0},{"$f":"'مدرسون حجرات'!F46","v":0},{"$f":"'مدرسون حجرات'!G46","v":0},{"$f":"'مدرسون حجرات'!H46","v":0},{"$f":"'مدرسون حجرات'!I46","v":0},{"$f":"'مدرسون حجرات'!J46","v":0},{"$f":"'مدرسون حجرات'!K46","v":0},{"$f":"'مدرسون حجرات'!L46","v":0},{"$f":"'مدرسون حجرات'!M46","v":0},{"$f":"'مدرسون حجرات'!N46","v":0}]
[]
[null,"الدار البيضاء في : ",{"$f":"TODAY()","v":"2016-11-29"},null,null,null,null,null,null,"توقيع السيد (ة) المدير (ة) :"]

{"sheet":"بطاقة إجمالية","index":16,"n_rows":61,"n_cols":40,"rows_kept":61,"cut":false,"hidden":false,"merged":[[7,0,7,6],[7,7,7,14],[7,25,7,31],[7,32,7,43],[9,0,9,43],[11,6,11,10],[0,0,0,6],[0,8,5,35],[0,36,0,43],[1,0,1,6],[1,36,1,43],[2,36,2,43],[3,36,3,43],[4,36,4,43],[14,5,14,16],[14,17,14,19],[14,20,14,22],[14,23,14,25],[14,26,14,27],[14,32,14,34],[12,17,12,19],[12,20,12,22],[12,23,12,25],[12,26,12,28],[13,17,13,19],[13,20,13,22],[13,23,13,25],[13,26,13,28],[16,5,16,16],[16,17,16,19],[16,20,16,22],[16,23,16,25],[16,26,16,27],[16,32,16,34],[15,5,15,16],[15,17,15,19],[15,20,15,22],[15,23,15,25],[15,26,15,27],[15,32,15,34],[17,8,17,11],[18,17,18,19],[18,20,18,22],[18,23,18,25],[18,26,18,28],[19,17,19,19],[19,20,19,22],[19,23,19,25],[19,26,19,28],[22,26,22,27],[22,32,22,34],[21,5,21,16],[21,17,21,19],[21,20,21,22],[21,23,21,25],[21,26,21,27],[21,32,21,34],[20,5,20,16],[20,17,20,19],[20,20,20,22],[20,23,20,25],[20,26,20,27],[20,32,20,34],[23,6,23,9],[24,10,24,13],[24,14,24,17],[24,18,24,19],[24,20,24,22],[24,23,24,25],[22,5,22,16],[22,17,22,19],[22,20,22,22],[22,23,22,25],[24,26,24,28],[24,29,24,31],[25,10,25,13],[25,14,25,17],[25,18,25,19],[25,20,25,22],[25,23,25,25],[25,26,25,28],[25,29,25,31],[26,26,26,28],[26,29,26,31],[26,32,26,36],[26,39,26,41],[27,5,27,9],[27,10,27,13],[27,14,27,17],[27,18,27,19],[27,20,27,22],[27,23,27,25],[26,5,26,9],[26,10,26,13],[26,14,26,17],[26,18,26,19],[26,20,26,22],[26,23,26,25],[27,26,27,28],[27,29,27,31],[27,32,27,36],[27,39,27,41],[28,39,28,41],[29,9,29,15],[30,15,30,17],[30,18,30,20],[30,21,30,23],[30,24,30,26],[31,15,31,17],[31,18,31,20],[31,21,31,23],[31,24,31,26],[28,5,28,9],[28,10,28,13],[28,14,28,17],[28,18,28,19],[28,20,28,22],[28,23,28,25],[28,26,28,28],[28,29,28,31],[28,32,28,36],[32,5,32,14],[32,15,32,17],[32,18,32,20],[32,21,32,23],[32,24,32,26],[32,27,32,36],[32,39,32,41],[33,5,33,14],[33,15,33,17],[33,18,33,20],[33,21,33,23],[33,24,33,26],[33,27,33,36],[33,39,33,41],[34,39,34,41],[35,10,35,15],[36,14,36,16],[36,17,36,19],[36,20,36,22],[36,23,36,25],[36,26,36,28],[34,5,34,14],[34,15,34,17],[34,18,34,20],[34,21,34,23],[34,24,34,26],[34,27,34,36],[37,14,37,16],[37,17,37,19],[37,20,37,22],[37,23,37,25],[37,26,37,28],[38,8,38,13],[38,14,38,16],[38,17,38,19],[38,20,38,22],[38,23,38,25],[38,26,38,28],[40,29,40,31],[40,39,40,41],[42,29,42,31],[42,32,42,34],[42,35,42,37],[38,29,38,31],[38,39,38,41],[39,8,39,13],[39,14,39,16],[39,17,39,19],[39,20,39,22],[39,23,39,25],[39,26,39,28],[39,29,39,31],[39,39,39,41],[42,10,42,13],[42,14,42,16],[42,17,42,19],[42,20,42,22],[42,23,42,25],[42,26,42,28],[40,8,40,13],[40,14,40,16],[40,17,40,19],[40,20,40,22],[40,23,40,25],[40,26,40,28],[43,32,43,34],[43,35,43,37],[44,5,44,9],[44,10,44,13],[44,14,44,16],[44,17,44,19],[44,20,44,22],[44,23,44,25],[44,26,44,28],[44,29,44,31],[44,32,44,34],[44,35,44,38],[43,10,43,13],[43,14,43,16],[43,17,43,19],[43,20,43,22],[43,23,43,25],[43,26,43,28],[43,29,43,31],[45,35,45,38],[46,5,46,9],[46,10,46,13],[46,14,46,16],[46,17,46,19],[46,20,46,22],[46,23,46,25],[46,26,46,28],[46,29,46,31],[46,32,46,34],[46,35,46,38],[45,5,45,9],[45,10,45,13],[45,14,45,16],[45,17,45,19],[45,20,45,22],[45,23,45,25],[45,26,45,28],[45,29,45,31],[45,32,45,34],[48,10,48,13],[48,14,48,16],[48,17,48,19],[48,20,48,22],[48,23,48,25],[48,26,48,28],[48,29,48,31],[48,32,48,34],[48,35,48,37],[49,10,49,13],[49,14,49,16],[49,17,49,19],[49,20,49,22],[49,23,49,25],[49,26,49,28],[49,29,49,31],[49,32,49,34],[49,35,49,37],[50,26,50,28],[50,29,50,31],[50,32,50,34],[50,35,50,38],[51,5,51,9],[51,10,51,13],[51,14,51,16],[51,17,51,19],[51,20,51,22],[51,23,51,25],[50,5,50,9],[50,10,50,13],[50,14,50,16],[50,17,50,19],[50,20,50,22],[50,23,50,25],[51,26,51,28],[51,29,51,31],[51,32,51,34],[51,35,51,38],[52,5,52,9],[52,10,52,13],[52,14,52,16],[52,17,52,19],[52,20,52,22],[52,23,52,25],[52,26,52,28],[52,29,52,31],[52,32,52,34],[52,35,52,38],[54,10,54,13],[54,14,54,16],[54,17,54,19],[54,20,54,22],[54,23,54,25],[54,26,54,28],[55,14,55,16],[55,17,55,19],[55,20,55,22],[55,23,55,25],[55,26,55,28],[56,8,56,13],[56,14,56,16],[56,17,56,19],[56,20,56,22],[56,23,56,25],[56,26,56,28],[56,31,56,33],[57,8,57,13],[57,14,57,16],[57,17,57,19],[57,20,57,22],[57,23,57,25],[57,26,57,28],[57,31,57,34],[58,31,58,34],[60,27,60,36],[61,27,61,36],[58,8,58,13],[58,14,58,16],[58,17,58,19],[58,20,58,22],[58,23,58,25],[58,26,58,28]]}
["DIRECTION PROVINCIALE",null,null,null,null,null,null,null,"بطاقة المؤسسة\n2016/2017\n   FICHE  ETABLISSEMENT",null,null,null,null,null,null,null,null,null,null,null,null,null,null,null,null,null,null,null,null,null,null,null,null,null,null,null,"المديرية الإقليمية"]
["AL FIDA MERS SULTAN",null,null,null,null,null,null,null,null,null,null,null,null,null,null,null,null,null,null,null,null,null,null,null,null,null,null,null,null,null,null,null,null,null,null,null,"الفداء مرس السلطان"]
[]
[]
[]
[]
[]
["Code Etablissement   رمز المؤسسة ",null,null,null,null,null,null,{"$f":"+ACCUEIL!E9","v":"50706P"},null,null,null,null,null,null,null,null,null,null,null,null,null,null,null,null,null,{"$f":"+ACCUEIL!E6","v":"مؤسسة النصر"},null,null,null,null,null,null,"               اسم المؤسسة:"]
[]
["NIVEAUX AUTORISES  &  NOMBRES  ELEVES/CLASSES                       المستويا ت وأعداد التلاميذ والأقسام"]
[]
[null,null,null,"Maternelle",null,null,"الحضانة"]
[null,null,null,null,null,null,null,null,null,null,null,null,null,null,null,null,null,"الأول",null,null,"الثاني",null,null,"المجموع"]
[null,null,null,null,null,null,null,null,null,null,null,null,null,null,null,null,null,"1°année",null,null,"2°année",null,null,"Total"]
[null,null,null,null,null,"Nbre Classes",null,null,null,null,null,null,null,null,null,null,null,null,null,null,null,null,null,{"$f":"SUM(R15:W15)","v":0},null,null,"عدد الأقسام",null,null,null,null,null,"الحجرات"]
[null,null,null,null,null,"Nbre Elèves",null,null,null,null,null,null,null,null,null,null,null,null,null,null,null,null,null,{"$f":"SUM(R16:W16)","v":0},null,null,"عدد التلاميذ",null,null,null,null,null,"المربون"]
[null,null,null,null,null,"Dont filles",null,null,null,null,null,null,null,null,null,null,null,null,null,null,null,null,null,0,null,null,"الإناث منهم",null,null,null,null,null,"الإناث منهم"]
[null,null,null,"Jardin d'enfants",null,null,null,null,"الروض"]
[null,null,null,null,null,null,null,null,null,null,null,null,null,null,null,null,null,"الأول",null,null,"الثاني",null,null,"المجموع"]
[null,null,null,null,null,null,null,null,null,null,null,null,null,null,null,null,null,"1°année",null,null,"2°année",null,null,"Total"]
[null,null,null,null,null,"Nbre Classes",null,null,null,null,null,null,null,null,null,null,null,null,null,null,null,null,null,{"$f":"SUM(R21:W21)","v":0},null,null,"عدد الأقسام",null,null,null,null,null,"الحجرات:"]
[null,null,null,null,null,"Nbre Elèves",null,null,null,null,null,null,null,null,null,null,null,null,null,null,null,null,null,{"$f":"SUM(R22:W22)","v":0},null,null,"عدد التلاميذ",null,null,null,null,null,"المربون:"]
[null,null,null,null,null,"Dont filles",null,null,null,null,null,null,null,null,null,null,null,null,null,null,null,null,null,0,null,null,"الإناث منهم",null,null,null,null,null,"الإناث منهم"]
[null,null,null,"Primaire",null,null,"الابتذائي"]
[null,null,null,null,null,null,null,null,null,null,"الأول",null,null,null,"الثاني",null,null,null,"الثالث",null,"الرابع",null,null,"الخامس",null,null,"السادس",null,null,"المجموع"]
[null,null,null,null,null,null,null,null,null,null,"1°année",null,null,null,"2°année",null,null,null,"3°année",null,"4°année",null,null,"5°année",null,null,"6°année",null,null,"Total"]
[null,null,null,null,null,"Nbre Classes",null,null,null,null,null,null,null,null,null,null,null,null,null,null,null,null,null,null,null,null,null,null,null,{"$f":"SUM(K27:AC27)","v":0},null,null,"عدد الأقسام",null,null,null,null,null,null,"الحجرات:"]
[null,null,null,null,null,"Nbre Elèves",null,null,null,null,null,null,null,null,null,null,null,null,null,null,null,null,null,null,null,null,null,null,null,{"$f":"SUM(K28:AC28)","v":0},null,null,"عدد التلاميذ",null,null,null,null,null,null,"الأساتذة:"]
[null,null,null,null,null,"Dont filles",null,null,null,null,null,null,null,null,null,null,null,null,null,null,null,null,null,null,null,null,null,null,null,0,null,null,"الإناث منهم",null,null,null,null,null,null,"الإناث منهم"]
[null,null,null,"Secondaire Collégial",null,null,null,null,null,"الثانوي الإعدادي"]
[null,null,null,null,null,null,null,null,null,null,null,null,null,null,null,"الأولى إعدادي",null,null,"الثانية إعدادي",null,null,"الثالثة إعدادي",null,null,"المجموع"]
[null,null,null,null,null,null,null,null,null,null,null,null,null,null,null,"1°année",null,null,"2°année",null,null,"3°année",null,null,"Total"]
[null,null,null,null,null,"Nbre Classes",null,null,null,null,null,null,null,null,null,null,null,null,null,null,null,null,null,null,{"$f":"SUM(P33:X33)","v":0},null,null,"عدد الأقسام",null,null,null,null,null,null,null,null,null,null,null,"الحجرات:"]
[null,null,null,null,null,"Nbre Elèves",null,null,null,null,null,null,null,null,null,null,null,null,null,null,null,null,null,null,{"$f":"SUM(P34:X34)","v":0},null,null,"عدد التلاميذ",null,null,null,null,null,null,null,null,null,null,null,"الأساتذة:"]
[null,null,null,null,null,"Dont filles",null,null,null,null,null,null,null,null,null,null,null,null,null,null,null,null,null,null,0,null,null,"الإناث منهم",null,null,null,null,null,null,null,null,null,null,null,"الإناث منهم"]
[null,null,null,"Secondaire Qualifiant",null,null,null,null,null,null,"الثانوي التأهيلي"]
[null,null,null,null,null,null,null,null,null,null,null,null,null,null,"ج م أدبي",null,null,"1با أدب ع إنسانية",null,null,"2با أدب ",null,null,"2با علوم إنسانية",null,null,"المجموع"]
[null,null,null,null,null,null,null,null,null,null,null,null,null,null,"TC Let",null,null,"1°Let et S Humaines",null,null,"2°Let",null,null,"2° S Humaines",null,null,"Total"]
[null,null,null,null,null,null,null,null,"Nbre Classes",null,null,null,null,null,null,null,null,null,null,null,null,null,null,null,null,null,{"$f":"SUM(O39:Z39)","v":0},null,null,"عدد الأقسام",null,null,null,null,null,null,null,null,null,"الحجرات:"]
[null,null,null,null,null,null,null,null,"Nbre Elèves",null,null,null,null,null,null,null,null,null,null,null,null,null,null,null,null,null,{"$f":"SUM(O40:Z40)","v":0},null,null,"عدد التلاميذ",null,null,null,null,null,null,null,null,null,"الأساتذة:"]
[null,null,null,null,null,null,null,null,"Dont filles",null,null,null,null,null,null,null,null,null,null,null,null,null,null,null,null,null,0,null,null,"الإناث منهم",null,null,null,null,null,null,null,null,null,"الإناث منهم"]
[]
[null,null,null,null,null,null,null,null,null,null,"ج م علمي",null,null,null,"1با ع تج",null,null,"2با ع فز",null,null,"2با ع ح وأرض",null,null,"1با ع رياضية",null,null,"2با ع رياضية أ",null,null,"2با ع رياضية ب ",null,null,"المجموع"]
[null,null,null,null,null,null,null,null,null,null,null,null,null,null,null,null,null,null,null,null,null,null,null,null,null,null,null,null,null,null,null,null,"Total"]
[null,null,null,null,null,"Nbre Classes",null,null,null,null,null,null,null,null,null,null,null,null,null,null,null,null,null,null,null,null,null,null,null,null,null,null,{"$f":"SUM(K45:AF45)","v":0},null,null,"عدد الأقسام"]
[null,null,null,null,null,"Nbre Elèves",null,null,null,null,null,null,null,null,null,null,null,null,null,null,null,null,null,null,null,null,null,null,null,null,null,null,{"$f":"SUM(K46:AF46)","v":0},null,null,"عدد التلاميذ"]
[null,null,null,null,null,"Dont filles",null,null,null,null,null,null,null,null,null,null,null,null,null,null,null,null,null,null,null,null,null,null,null,null,null,null,0,null,null,"الإناث منهم"]
[]
[null,null,null,null,null,null,null,null,null,null,"ج م علمي ",null,null,null,"1با ع تج",null,null,"2با ع فز",null,null,"2با ع ح وأرض",null,null,"1با ع رياضية",null,null,"2با ع رياضية أ",null,null,"2با ع رياضية ب ",null,null,"المجموع"]
[null,null,null,null,null,null,null,null,null,null,"خ فرنسية",null,null,null,"خ فرنسية",null,null,"خ فرنسية",null,null,"خ فرنسية",null,null,"خ فرنسية",null,null,"خ فرنسية",null,null,"خ فرنسية",null,null,"Total"]
[null,null,null,null,null,"Nbre Classes",null,null,null,null,null,null,null,null,null,null,null,null,null,null,null,null,null,null,null,null,null,null,null,null,null,null,{"$f":"SUM(K51:AF51)","v":0},null,null,"عدد الأقسام"]
[null,null,null,null,null,"Nbre Elèves",null,null,null,null,null,null,null,null,null,null,null,null,null,null,null,null,null,null,null,null,null,null,null,null,null,null,{"$f":"SUM(K52:AF52)","v":0},null,null,"عدد التلاميذ"]
[null,null,null,null,null,"Dont filles",null,null,null,null,null,null,null,null,null,null,null,null,null,null,null,null,null,null,null,null,null,null,null,null,null,null,0,null,null,"الإناث منهم"]
[]
[null,null,null,null,null,null,null,null,null,null,null,null,null,null,"ج تكنولوجي",null,null,"1با ع إقتصاد وتدبير",null,null,"2با ع إقتصادية",null,null,"2با تسيير محاسباتي",null,null,"المجموع"]
[null,null,null,null,null,null,null,null,null,null,null,null,null,null,"TC Tec",null,null,"1°SC Eco et Gestion",null,null,"2°Sc Eco",null,null,"2° Gestion compt",null,null,"Total"]
[null,null,null,null,null,null,null,null,"Nbre Classes",null,null,null,null,null,null,null,null,null,null,null,null,null,null,null,null,null,{"$f":"SUM(O57:Z57)","v":0},null,null,null,null,"عدد الأقسام"]
[null,null,null,null,null,null,null,null,"Nbre Elèves",null,null,null,null,null,null,null,null,null,null,null,null,null,null,null,null,null,{"$f":"SUM(O58:Z58)","v":0},null,null,null,null,"عدد التلاميذ"]
[null,null,null,null,null,null,null,null,"Dont filles",null,null,null,null,null,null,null,null,null,null,null,null,null,null,null,null,null,0,null,null,null,null,"الإناث منهم"]
[]
[null,null,null,null,null,null,null,null,null,null,null,null,null,null,null,null,null,null,null,null,null,null,null,null,null,null,null,"توقيع السيد (ة) مدير (ة) المؤسسة :"]